Workbook

Sheet Index
A1: Number | B1: Magazine | C1: Title | D1: Excel Workbook | E1: Adobe File | F1: Maximum Age | G1: Future | H1: Solar System | I1: Galaxy | J1: Universe | K1: K/Ar | L1: 40Ar/39Ar | M1: Re/Os | N1: Pb 207 | O1: Th-232 | P1: U-235 | Q1: U-238 | R1: Sm/Nd
A2: 1 | B2: Earth and Planetary Science Letters, 1981, Volume 55, Pages 123 - 149 | C2: Metamorphic Rocks From Broken Hill | D2: Good_01 | E2: =("C:\Essays\Geo_Dating\Iso_Plot_Dates\" & D2 & ".pdf") -> C:\Essays\Geo_Dating\Iso_Plot_Dates\Good_01.pdf | F2: 7300 | H2: 71 | L2: 71
A3: 2 | B3: Earth and Planetary Science Letters, 1983, Volume 63, Pages 1 To 12 | C3: Presolar Ages In Allende Inclusions | D3: Good_02 | E3: =("C:\Essays\Geo_Dating\Iso_Plot_Dates\" & D3 & ".pdf") -> C:\Essays\Geo_Dating\Iso_Plot_Dates\Good_02.pdf | F3: 8880 | H3: 11 | L3: 11
A4: 3 | B4: Nature, 1979, Volume 277, Pages 554 - 556 | C4: Gerontology Of The Allende Meteorite | D4: Good_03 | E4: C:\Essays\Geo_Dating\Iso_Plot_Dates\Good_03.pdf | F4: 11010 | H4: 47 | I4: 1 | L4: 47
A5: 4 | B5: Geochimica et Cosmochimica Acta, 2005, Volume 69, Number 5, Pages 1253–1264 | C5: Argon Isotope Fractionation | D5: Good_06 | E5: C:\Essays\Geo_Dating\Iso_Plot_Dates\Good_06.pdf | F5: 5804 | H5: 7 | L5: 7
A6: 5 | B6: Geochimica et Cosmochimica Acta, 2006, Volume 70, Pages 2562–2576 | C6: Evaluation Of 40ar–39ar Quartz Ages | D6: Good_08 | E6: C:\Essays\Geo_Dating\Iso_Plot_Dates\Good_08.pdf | F6: 9969 | H6: 29 | L6: 29
A7: 6 | B7: http://www.lpi.usra.edu/meetings/lpsc1980/pdf/1155.pdf | C7: 39ar-40ar Systematics Of Allende Inclusions | D7: Good_11 | E7: C:\Essays\Geo_Dating\Iso_Plot_Dates\Good_11.pdf | F7: 8500 | H7: 10 | L7: 11
A8: 7 | B8: http://www.lpi.usra.edu/meetings/lpsc1978/pdf/1289.pdf | C8: U-Th-Pb, Sm-Nd And Rb-Sr Model Ages | D8: Good_12 | E8: C:\Essays\Geo_Dating\Iso_Plot_Dates\Good_12.pdf | F8: 8375 | H8: 10 | N8: 2 | O8: 2 | Q8: 2 | R8: 4
A9: 8 | B9: Precambrian Research 92 (1998) 129–144 | C9: Archaean Barberton Greenstone Belt | D9: Diamonds_01 | E9: =("C:\Essays\Geo_Dating\Lead_206_207\" & D9 & ".pdf") -> C:\Essays\Geo_Dating\Lead_206_207\Diamonds_01.pdf | F9: 4596
A10: 9 | B10: Precambrian Research 163 (2008) 131–150 | C10: Proterozoic Eastern Mount Isa Block | D10: Diamonds_02 | E10: =("C:\Essays\Geo_Dating\Lead_206_207\" & D10 & ".pdf") -> C:\Essays\Geo_Dating\Lead_206_207\Diamonds_02.pdf | F10: 24390
A11: 10 | B11: Precambrian Research, 17 (1982) 199--214 | C11: Zircon U-Pb Ages Of Guyana Greenstone | D11: Diamonds_03 | E11: =("C:\Essays\Geo_Dating\Lead_206_207\" & D11 & ".pdf") -> C:\Essays\Geo_Dating\Lead_206_207\Diamonds_03.pdf | F11: 44241 | H11: 10 | I11: 10 | J11: 10 | O11: 10
A12: 11 | B12: Precambrian Research, 21 (1983) 197--222 | C12: Early Archaean Rocks At Fyfe Hills | D12: Diamonds_04 | E12: =("C:\Essays\Geo_Dating\Lead_206_207\" & D12 & ".pdf") -> C:\Essays\Geo_Dating\Lead_206_207\Diamonds_04.pdf | F12: 2500
A13: 12 | B13: Geochimica et Cosmochimica Acta, Vol. 64, No. 4, pp. 717–732, 2000 | C13: African And Canadian Diamonds | D13: Very_Old_01 | E13: C:\Essays\Geo_Dating\Lead_206_207\Very_Old_01.pdf | F13: 8300 | H13: 23 | K13: 23
A14: 13 | B14: Meteoritics & Planetary Science 40, Nr 9/10, 1433–1454 (2005) | C14: Dhofar 300 and Dhofar 007 | D14: Very_Old_02 | E14: C:\Essays\Geo_Dating\Lead_206_207\Very_Old_02.pdf | F14: 9680 | H14: 21 | L14: 21
A15: 14 | B15: Meteoritics & Planetary Science 33,921-935 (1998) | C15: Argon-40-Argon-39 Age Determinations | D15: Very_Old_03 | E15: C:\Essays\Geo_Dating\Lead_206_207\Very_Old_03.pdf | F15: 6930 | H15: 19 | L15: 19
A16: 15 | B16: Meteoritics & Planetary Science, 2002, Volume 37, Pages 1797-1813 | C16: Northwest Africa 482 | D16: Very_Old_04 | E16: C:\Essays\Geo_Dating\Lead_206_207\Very_Old_04.pdf | F16: 9905 | H16: 7 | L16: 7
A17: 16 | B17: Meteoritics & Planetarv Science, 2002, Volume 37, Pages 371- 394 | C17: Northwest Africa 032 | D17: Very_Old_05 | E17: C:\Essays\Geo_Dating\Lead_206_207\Very_Old_05.pdf | F17: 6190 | H17: 3 | L17: 3
A18: 17 | B18: Meteoritics And Planetary Science, 1998, Volume 33, pages 31-48 | C18: Eagles Nest And Lewis Cliff 88763 | D18: Very_Old_06 | E18: C:\Essays\Geo_Dating\Lead_206_207\Very_Old_06.pdf | F18: 5845 | H18: 1 | L18: 1
A19: 18 | B19: Geochimica et Cosmochimica Acta 74 (2010) 3292–3306 | C19: Diamonds From Ellendale | D19: Very_Old_07 | E19: C:\Essays\Geo_Dating\Lead_206_207\Very_Old_07.pdf | F19: 7973 | G19: 4 | H19: 1 | M19: 5
A20: 19 | B20: Geochimica et Cosmochimica Acta, 1983 Vol. 47. Pages 2217 to 2224 | C20: K-Ar Dating Of Diamonds | D20: Very_Old_08 | E20: C:\Essays\Geo_Dating\Lead_206_207\Very_Old_08.pdf | F20: 9100 | H20: 8 | K20: 8
A21: 20 | B21: Geochimica et Cosmochimica Acta 72 (2008) 5819–5837 | C21: Young Martian Basalts | D21: Very_Old_09 | E21: C:\Essays\Geo_Dating\Lead_206_207\Very_Old_09.pdf | F21: 8064 | H21: 14 | L21: 14
A22: 21 | B22: Lithos, 2003, Volume 71, Pages 323– 336 | C22: Re–Os Systematics | D22: Very_Old_10 | E22: C:\Essays\Geo_Dating\Lead_206_207\Very_Old_10.pdf | F22: 18500 | G22: 1 | H22: 5 | I22: 2 | J22: 2 | M22: 8
A23: 22 | B23: Geochimica et Cosmochimica Acta, Vol. 64, No. 17, pp. 3061–3071, 2000 | C23: Northern Canadian Cordillera Xenoliths | D23: Very_Old_11 | E23: C:\Essays\Geo_Dating\Lead_206_207\Very_Old_11.pdf | F23: Negative | G23: 15 | M23: 15
A24: 23 | B24: Geochimica et Cosmochimica Acta, Vol. 61, No. 18, pp. 3835-3850, 1997 | C24: The Martian Meteorite Alh84001 | D24: Very_Old_12 | E24: C:\Essays\Geo_Dating\Lead_206_207\Very_Old_12.pdf | F24: 9153 | H24: 11 | L24: 11
A25: 24 | B25: Geochimica et Cosmochimica Acta 74 (2010) Pages 5368–5381 | C25: The Slave Craton, Canada | D25: Very_Old_13 | E25: C:\Essays\Geo_Dating\Lead_206_207\Very_Old_13.pdf | F25: 5800 | H25: 2 | M25: 2
A26: 25 | B26: Earth And Planetary Science Letters 17 (1972) 36-51 | C26: U-Th-Pb Systematics In Lunar Highland Samples | D26: Very_Old_15 | E26: C:\Essays\Geo_Dating\Lead_206_207\Very_Old_15.pdf | F26: 7830 | H26: 98 | N26: 35 | O26: 21 | P26: 21 | Q26: 21
A27: 26 | B27: Precambrian Research, 57 (1992) 91-119 | C27: A 40Ar/39Ar Geochronological Study | D27: Very_Old_16 | E27: C:\Essays\Geo_Dating\Lead_206_207\Very_Old_16.pdf | F27: -45000000000 | G27: 3 | H27: 22 | L27: 25
E28: http://dx.doi.org/10.1016/j.gca.2010.06.005 | G28: =SUM(G2:G27) -> 23 | H28: =SUM(H2:H27) -> 430 | I28: 13 | J28: 12 | K28: 31 | L28: 277 | M28: 30 | N28: 37 | O28: 33 | P28: 21 | Q28: 23 | R28: 4

Sheet Very_Old_01
A2: Congo | B2: Leslie | C2: Grizzly | D2: Fox | E2: Koala | F2: Jwaneng
A3: 5500 | B3: 7500 | C3: 7500 | D3: 6500 | E3: 6500 | F3: 5000
A4: 5500 | B4: 7500 | C4: 7500 | D4: 7500 | E4: 7000 | F4: 5000
A5: 5500 | B5: 8000 | D5: 8300 | E5: 7500 | F5: 5000
A6: 6500 | F6: 5000
A7: 6500
A8: 6500
C16: 8500 Ma
B18: 40Ar | K18: K
A19: 1 | B19: 11520 | C19: =(B19 * (10 ^ - 18)) -> 1.152e-14 | D19: 30 | E19: 10 | F19: 6 | G19: 0.9 | H19: 9.2 | I19: 6 | J19: 0.4 | K19: 48.1 | L19: =(K19 * (10 ^ - 12)) -> 4.81e-11 | M19: 3 | N19: 926 | O19: =(N19 * (10 ^ -6)) -> 0.000926 | P19: 43
A20: 2 | B20: 21934 | C20: 2.1934e-14 | D20: 45 | E20: 65.7 | F20: 6 | G20: 1.7 | H20: 3.7 | I20: 6 | J20: 0.7 | K20: 49.1 | L20: 4.91e-11 | M20: 2.1 | N20: 674 | O20: 0.000674 | P20: 132
A21: 3 | B21: 4749 | C21: 4.749e-15 | D21: 27 | E21: 3 | F21: 6 | G21: 0.8 | H21: 3.9 | I21: 6 | J21: 0.5 | K21: 24.9 | L21: 2.49e-11 | M21: 1.8 | N21: 990 | O21: 0.00099 | P21: 137
A22: 4 | B22: 2566 | C22: 2.566e-15 | D22: 12 | E22: 0.1 | F22: 6 | G22: 0.7 | H22: 2.6 | I22: 6 | J22: 0.4 | K22: 7.3 | L22: 7.3e-12 | M22: 0.6 | N22: 1003 | O22: 0.001003 | P22: 160
A23: 5 | B23: 4699 | C23: 4.699e-15 | D23: 12 | E23: 4.9 | F23: 6 | G23: 0.8 | H23: 4 | I23: 6 | J23: 0.4 | K23: 24.3 | L23: 2.43e-11 | M23: 1.9 | N23: 815 | O23: 0.000815 | P23: 90
A24: 6 | B24: 3830 | C24: 3.83e-15 | D24: 12 | E24: 10.4 | F24: 6 | G24: 1.1 | H24: 1.6 | I24: 6 | J24: 0.7 | K24: 6.9 | L24: 6.9e-12 | M24: 5.2 | N24: 497 | O24: 0.000497 | P24: 239
A25: 7 | B25: 4280 | C25: 4.28e-15 | D25: 6 | E25: 3.5 | F25: 6 | G25: 0.6 | H25: 3.7 | I25: 6 | J25: 0.7 | K25: 20.9 | L25: 2.09e-11 | M25: 1.5 | N25: 872 | O25: 0.000872 | P25: 172
A26: 8 | B26: 10005 | C26: 1.0005e-14 | D26: 19 | E26: 15.2 | F26: 6 | G26: 0.6 | H26: 5.8 | I26: 6 | J26: 0.7 | K26: 39.8 | L26: 3.98e-11 | M26: 1.5 | N26: 957 | O26: 0.000957 | P26: 110
A27: 9 | B27: 4367 | C27: 4.367e-15 | D27: 19 | E27: 1.4 | F27: 6 | G27: 0.7 | H27: 4.1 | I27: 6 | J27: 0.5 | K27: 24.2 | L27: 2.42e-11 | M27: 1.7 | N27: 960 | O27: 0.00096 | P27: 118
A28: 10 | B28: 3474 | C28: 3.474e-15 | D28: 5 | E28: 0.5 | F28: 6 | G28: 0.6 | H28: 3 | I28: 6 | J28: 0.5 | K28: 19.1 | L28: 1.91e-11 | M28: 2.6 | N28: 1118 | O28: 0.001118 | P28: 189
A29: 11 | B29: 8419 | C29: 8.419e-15 | D29: 17 | E29: 7.6 | F29: 6 | G29: 1 | H29: 5 | I29: 6 | J29: 0.7 | K29: 38.1 | L29: 3.81e-11 | M29: 1.9 | N29: 1249 | O29: 0.001249 | P29: 172
A30: 12 | B30: 5772 | C30: 5.772e-15 | D30: 7 | E30: 6.7 | F30: 6 | G30: 0.8 | H30: 5.3 | I30: 6 | J30: 0.3 | K30: 24.2 | L30: 2.42e-11 | M30: 2.9 | N30: 719 | O30: 0.000719 | P30: 36
A31: 13 | B31: 11181 | C31: 1.1181e-14 | D31: 22 | E31: 23.2 | F31: 6 | G31: 0.8 | H31: 4.9 | I31: 6 | J31: 0.4 | K31: 35.2 | L31: 3.52e-11 | M31: 2.2 | N31: 876 | O31: 0.000876 | P31: 69
A32: 14 | B32: 5499 | C32: 5.499e-15 | D32: 15 | E32: 1 | F32: 6 | G32: 0.5 | H32: 5.7 | I32: 6 | J32: 0.3 | K32: 33.2 | L32: 3.32e-11 | M32: 2.1 | N32: 920 | O32: 0.00092 | P32: 54
A33: 15 | B33: 2179 | C33: 2.179e-15 | D33: 5 | E33: 2 | F33: 6 | G33: 0.7 | H33: 2.4 | I33: 6 | J33: 0.6 | K33: 11.5 | L33: 1.15e-11 | M33: 1.5 | N33: 648 | O33: 0.000648 | P33: 172
A34: 16 | B34: 9728 | C34: 9.728e-15 | D34: 6 | E34: 8.4 | F34: 6 | G34: 1.1 | H34: 8 | I34: 6 | J34: 0.5 | K34: 45.6 | L34: 4.56e-11 | M34: 4.4 | N34: 901 | O34: 0.000901 | P34: 59
A35: 17 | B35: 7660 | C35: 7.66e-15 | D35: 12 | E35: 1.6 | F35: 6 | G35: 0.8 | H35: 7.2 | I35: 6 | J35: 0.4 | K35: 42 | L35: 4.2e-11 | M35: 2.2 | N35: 993 | O35: 0.000993 | P35: 48
A36: 18 | B36: 7518 | C36: 7.518e-15 | D36: 18 | E36: 5.9 | F36: 6 | G36: 0.6 | H36: 6.8 | I36: 6 | J36: 0.4 | K36: 40 | L36: 4e-11 | M36: 2.5 | N36: 851 | O36: 0.000851 | P36: 53
K41: K | L41: 40Ar
F42: 605 | G42: 280 | H42: =(F42-G42) -> 325 | I42: =(1500/H42) -> 4.615384615 | K42: 48.1 | L42: 11520
F43: 277 | G43: 173 | H43: =(F43-G43) -> 104 | I43: =(2000/H43) -> 19.23076923 | K43: 49.1 | L43: 21934
F44: 561 | G44: 316 | H44: =(F44-G44) -> 245 | K44: 24.9 | L44: 4749
F45: 950 | G45: 705 | H45: =(F45-G45) -> 245 | K45: 7.3 | L45: 2566
F46: 705 | G46: 245 | H46: =(F46-G46) -> 460 | K46: 24.3 | L46: 4699
K47: 6.9 | L47: 3830
K48: 20.9 | L48: 4280
K49: 39.8 | L49: 10005
K50: 24.2 | L50: 4367
K51: 19.1 | L51: 3474
K52: 38.1 | L52: 8419
K53: 24.2 | L53: 5772
K54: 35.2 | L54: 11181
K55: 33.2 | L55: 5499
K56: 11.5 | L56: 2179
K57: 45.6 | L57: 9728
K58: 42 | L58: 7660
K59: 40 | L59: 7518

Sheet Very_Old_02
T1: 9680
A2: Table | B2: A1. | T2: 9015
A3: 350 | B3: 1945 | C3: 17 | D3: 0 | E3: 0 | F3: 372 | G3: 5 | H3: 22 | I3: 3 | J3: 569 | K3: 4 | T3: 8957
A4: 450 | B4: 664 | C4: 6 | D4: 67 | E4: 2 | F4: 189 | G4: 4 | H4: 46 | I4: 3 | J4: 206 | K4: 2 | L4: 7632 | M4: 114 | T4: 8485
A5: 530 | B5: 223 | C5: 4 | D5: 429 | E5: 5 | F5: 205 | G5: 4 | H5: 270 | I5: 5 | J5: 125 | K5: 1 | L5: 3766 | M5: 26 | T5: 7632
A6: 600 | B6: 252 | C6: 4 | D6: 750 | E6: 6 | F6: 379 | G6: 6 | H6: 503 | I6: 5 | J6: 201 | K6: 1 | L6: 3536 | M6: 9 | T6: 7582
A7: 650 | B7: 393 | C7: 7 | D7: 1152 | E7: 10 | F7: 564 | G7: 6 | H7: 720 | I7: 7 | J7: 292 | K7: 2 | L7: 3554 | M7: 11 | T7: 7011
A8: 680 | B8: 444 | C8: 5 | D8: 1088 | E8: 9 | F8: 555 | G8: 7 | H8: 656 | I8: 7 | J8: 291 | K8: 2 | L8: 3698 | M8: 13 | T8: 6064
A9: 710 | B9: 691 | C9: 7 | D9: 1135 | E9: 10 | F9: 614 | G9: 8 | H9: 618 | I9: 7 | J9: 370 | K9: 3 | L9: 4177 | M9: 15 | T9: 6033
A10: 740 | B10: 842 | C10: 8 | D10: 1001 | E10: 8 | F10: 607 | G10: 6 | H10: 620 | I10: 7 | J10: 394 | K10: 3 | L10: 4272 | M10: 13 | T10: 5793
A11: 770 | B11: 369 | C11: 5 | D11: 1147 | E11: 9 | F11: 562 | G11: 7 | H11: 646 | I11: 7 | J11: 275 | K11: 2 | L11: 3631 | M11: 11 | T11: 5721
A12: 800 | B12: 434 | C12: 6 | D12: 1348 | E12: 12 | F12: 657 | G12: 8 | H12: 699 | I12: 8 | J12: 320 | K12: 2 | L12: 3746 | M12: 13 | T12: 5656
A13: 830 | B13: 512 | C13: 7 | D13: 1587 | E13: 13 | F13: 771 | G13: 8 | H13: 831 | I13: 8 | J13: 384 | K13: 3 | L13: 3760 | M13: 11 | T13: 5516
A14: 860 | B14: 503 | C14: 7 | D14: 1575 | E14: 13 | F14: 765 | G14: 8 | H14: 834 | I14: 8 | J14: 378 | K14: 3 | L14: 3732 | M14: 11 | T14: 5498
A15: 890 | B15: 461 | C15: 6 | D15: 1466 | E15: 13 | F15: 726 | G15: 7 | H15: 764 | I15: 8 | J15: 358 | K15: 3 | L15: 3784 | M15: 11 | T15: 5395
A16: 920 | B16: 377 | C16: 6 | D16: 1199 | E16: 10 | F16: 596 | G16: 6 | H16: 656 | I16: 8 | J16: 301 | K16: 2 | L16: 3752 | M16: 16 | T16: 5237
A17: 950 | B17: 301 | C17: 5 | D17: 960 | E17: 8 | F17: 480 | G17: 5 | H17: 497 | I17: 7 | J17: 252 | K17: 2 | L17: 3907 | M17: 17 | T17: 5137
A18: 980 | B18: 221 | C18: 4 | D18: 691 | E18: 6 | F18: 357 | G18: 5 | H18: 363 | I18: 4 | J18: 195 | K18: 2 | L18: 3996 | M18: 14 | T18: 5035
A19: 1010 | B19: 187 | C19: 5 | D19: 540 | E19: 6 | F19: 297 | G19: 5 | H19: 315 | I19: 6 | J19: 158 | K19: 1 | L19: 3885 | M19: 28 | T19: 5035
A20: 1040 | B20: 177 | C20: 5 | D20: 528 | E20: 6 | F20: 285 | G20: 6 | H20: 281 | I20: 5 | J20: 149 | K20: 1 | L20: 3977 | M20: 25 | T20: 4998
A21: 1070 | B21: 183 | C21: 5 | D21: 546 | E21: 6 | F21: 297 | G21: 5 | H21: 261 | I21: 5 | J21: 141 | K21: 1 | L21: 4007 | M21: 26 | T21: 4962
A22: 1100 | B22: 185 | C22: 5 | D22: 549 | E22: 7 | F22: 291 | G22: 6 | H22: 254 | I22: 5 | J22: 129 | K22: 1 | L22: 3908 | M22: 30 | T22: 4788
A23: 1140 | B23: 205 | C23: 6 | D23: 605 | E23: 8 | F23: 329 | G23: 5 | H23: 241 | I23: 4 | J23: 121 | K23: 1 | L23: 3893 | M23: 22 | T23: 4753
A24: 1180 | B24: 273 | C24: 7 | D24: 755 | E24: 11 | F24: 442 | G24: 7 | H24: 261 | I24: 6 | J24: 116 | K24: 2 | L24: 3701 | M24: 29 | T24: 4741
A25: 1220 | B25: 355 | C25: 4 | D25: 907 | E25: 8 | F25: 536 | G25: 6 | H25: 189 | I25: 5 | J25: 92 | K25: 1 | L25: 3842 | M25: 41 | T25: 4720
A26: 1270 | B26: 750 | C26: 9 | D26: 1945 | E26: 17 | F26: 1155 | G26: 10 | H26: 157 | I26: 4 | J26: 79 | K26: 1 | L26: 3906 | M26: 40 | T26: 4681
A27: 1320 | B27: 1545 | C27: 16 | D27: 3761 | E27: 32 | F27: 2341 | G27: 18 | H27: 250 | I27: 6 | J27: 116 | K27: 1 | L27: 3768 | M27: 38 | T27: 4494
A28: 1390 | B28: 1104 | C28: 28 | D28: 2475 | E28: 58 | F28: 1613 | G28: 38 | H28: 156 | I28: 5 | J28: 98 | K28: 2 | L28: 4247 | M28: 36 | T28: 4414
A29: 1460 | B29: 263 | C29: 26 | D29: 460 | E29: 42 | F29: 305 | G29: 28 | H29: 57 | I29: 6 | J29: 35 | K29: 3 | L29: 4229 | M29: 66 | T29: 4354
A30: 1550 | B30: 156 | C30: 44 | D30: 187 | E30: 42 | F30: 142 | G30: 32 | H30: 26 | I30: 7 | J30: 35 | K30: 8 | L30: 5498 | M30: 209 | T30: 4317
A31: 1650 | B31: 115 | C31: 89 | D31: 33 | E31: 20 | F31: 49 | G31: 31 | H31: 17 | I31: 11 | J31: 30 | K31: 18 | L31: 6033 | M31: 413 | T31: 4272
A32: Total | B32: 14130 | C32: 110 | D32: 28890 | E32: 100 | F32: 16479 | G32: 74 | H32: 11208 | I32: 34 | J32: 6211 | K32: 22 | L32: 4050 | M32: 32 | T32: 4247
T33: 4229
T34: 4193
A35: Table | B35: A2. | T35: 4185
A36: 400 | B36: 272 | C36: 5 | D36: 2 | E36: 1 | F36: 56 | G36: 3 | H36: 183 | I36: 17 | J36: 791 | K36: 10 | L36: 7582 | M36: 163 | T36: 4180
A37: 500 | B37: 109 | C37: 3 | D37: 50 | E37: 1 | F37: 45 | G37: 2 | H37: 471 | I37: 27 | J37: 397 | K37: 6 | L37: 4741 | M37: 91 | T37: 4177
A38: 570 | B38: 36 | C38: 2 | D38: 96 | E38: 3 | F38: 45 | G38: 2 | H38: 558 | I38: 25 | J38: 262 | K38: 5 | L38: 3785 | M38: 63 | T38: 4050
A39: 620 | B39: 79 | C39: 3 | D39: 138 | E39: 2 | F39: 73 | G39: 2 | H39: 862 | I39: 24 | J39: 439 | K39: 6 | L39: 3914 | M39: 39 | T39: 4011
A40: 660 | B40: 261 | C40: 4 | D40: 197 | E40: 3 | F40: 131 | G40: 4 | H40: 1081 | I40: 24 | J40: 1040 | K40: 13 | L40: 4962 | M40: 31 | T40: 4007
A41: 700 | B41: 234 | C41: 4 | D41: 228 | E41: 3 | F41: 132 | G41: 2 | H41: 1484 | I41: 27 | J41: 991 | K41: 12 | L41: 4354 | M41: 23 | T41: 4004
A42: 740 | B42: 78 | C42: 3 | D42: 252 | E42: 4 | F42: 119 | G42: 2 | H42: 1893 | I42: 39 | J42: 543 | K42: 7 | L42: 3031 | M42: 22 | T42: 3996
A43: 780 | B43: 107 | C43: 3 | D43: 365 | E43: 5 | F43: 174 | G43: 3 | H43: 2158 | I43: 38 | J43: 791 | K43: 10 | L43: 3401 | M43: 18 | T43: 3977
A44: 820 | B44: 168 | C44: 4 | D44: 538 | E44: 7 | F44: 262 | G44: 5 | H44: 3301 | I44: 47 | J44: 1153 | K44: 14 | L44: 3326 | M44: 12 | T44: 3957
A45: 860 | B45: 200 | C45: 4 | D45: 661 | E45: 8 | F45: 315 | G45: 5 | H45: 3464 | I45: 53 | J45: 1439 | K45: 17 | L45: 3593 | M45: 16 | T45: 3947
A46: 900 | B46: 196 | C46: 4 | D46: 651 | E46: 9 | F46: 297 | G46: 5 | H46: 3197 | I46: 47 | J46: 1446 | K46: 17 | L46: 3726 | M46: 14 | T46: 3918
A47: 940 | B47: 149 | C47: 5 | D47: 517 | E47: 7 | F47: 254 | G47: 5 | H47: 2574 | I47: 42 | J47: 1208 | K47: 14 | L47: 3785 | M47: 18 | T47: 3916
A48: 980 | B48: 96 | C48: 2 | D48: 342 | E48: 5 | F48: 165 | G48: 4 | H48: 1608 | I48: 36 | J48: 866 | K48: 11 | L48: 4004 | M48: 30 | T48: 3914
A49: 1020 | B49: 71 | C49: 3 | D49: 255 | E49: 4 | F49: 123 | G49: 3 | H49: 1008 | I49: 33 | J49: 698 | K49: 9 | L49: 4414 | M49: 49 | T49: 3908
A50: 1080 | B50: 200 | C50: 4 | D50: 652 | E50: 7 | F50: 312 | G50: 4 | H50: 2782 | I50: 46 | J50: 1816 | K50: 17 | L50: 4317 | M50: 22 | T50: 3907
A51: 1160 | B51: 380 | C51: 6 | D51: 642 | E51: 7 | F51: 336 | G51: 5 | H51: 2811 | I51: 50 | J51: 2286 | K51: 21 | L51: 4681 | M51: 25 | T51: 3906
A52: 1260 | B52: 155 | C52: 3 | D52: 241 | E52: 3 | F52: 137 | G52: 2 | H52: 1151 | I52: 19 | J52: 836 | K52: 11 | L52: 4494 | M52: 16 | T52: 3900
A53: 1350 | B53: 170 | C53: 6 | D53: 113 | E53: 3 | F53: 83 | G53: 3 | H53: 220 | I53: 20 | J53: 689 | K53: 15 | L53: 7011 | M53: 153 | T53: 3893
A54: 1450 | B54: 178 | C54: 9 | D54: 179 | E54: 5 | F54: 113 | G54: 4 | H54: 1067 | I54: 35 | J54: 906 | K54: 23 | L54: 4753 | M54: 36 | T54: 3885
A55: 1550 | B55: 233 | C55: 29 | D55: 15 | E55: 2 | F55: 51 | G55: 6 | H55: 0 | I55: 0 | J55: 763 | K55: 66 | T55: 3885
A56: 1650 | B56: 246 | C56: 87 | D56: 0 | E56: 0 | F56: 61 | G56: 19 | H56: 6 | I56: 6 | J56: 690 | K56: 180 | T56: 3881
A57: Total | B57: 3618 | C57: 94 | D57: 6133 | E57: 22 | F57: 3285 | G57: 25 | H57: 31880 | I57: 160 | J57: 20060 | K57: 200 | L57: 4193 | M57: 559 | T57: 3880
T58: 3876
T59: 3872
A60: Table | B60: A3. | T60: 3868
A61: 300 | B61: 970 | C61: 10 | D61: 13 | E61: 1 | F61: 196 | G61: 2 | H61: 31 | I61: 1 | J61: 302 | K61: 2 | L61: 9015 | M61: 83 | T61: 3861
A62: 450 | B62: 1337 | C62: 9 | D62: 31 | E62: 1 | F62: 302 | G62: 3 | H62: 297 | I62: 3 | J62: 395 | K62: 2 | L62: 5516 | M62: 15 | T62: 3842
A63: 530 | B63: 424 | C63: 6 | D63: 91 | E63: 1 | F63: 194 | G63: 2 | H63: 823 | I63: 8 | J63: 127 | K63: 1 | L63: 2185 | M63: 8 | T63: 3840
A64: 600 | B64: 336 | C64: 4 | D64: 190 | E64: 3 | F64: 238 | G64: 3 | H64: 706 | I64: 6 | J64: 116 | K64: 1 | L64: 2257 | M64: 5 | T64: 3832
A65: 650 | B65: 284 | C65: 4 | D65: 249 | E65: 3 | F65: 219 | G65: 3 | H65: 545 | I65: 5 | J65: 122 | K65: 1 | L65: 2673 | M65: 9 | T65: 3829
A66: 680 | B66: 307 | C66: 6 | D66: 211 | E66: 4 | F66: 193 | G66: 4 | H66: 358 | I66: 7 | J66: 119 | K66: 2 | L66: 3248 | M66: 9 | T66: 3806
A67: 710 | B67: 555 | C67: 10 | D67: 415 | E67: 7 | F67: 386 | G67: 7 | H67: 592 | I67: 10 | J67: 215 | K67: 4 | L67: 3383 | M67: 6 | T67: 3788
A68: 740 | B68: 694 | C68: 12 | D68: 631 | E68: 11 | F68: 581 | G68: 10 | H68: 720 | I68: 12 | J68: 291 | K68: 5 | L68: 3549 | M68: 7 | T68: 3787
A69: 770 | B69: 331 | C69: 6 | D69: 528 | E69: 9 | F69: 459 | G69: 8 | H69: 593 | I69: 11 | J69: 182 | K69: 3 | L69: 3130 | M69: 10 | T69: 3785
A70: 800 | B70: 455 | C70: 8 | D70: 740 | E70: 12 | F70: 662 | G70: 11 | H70: 778 | I70: 13 | J70: 250 | K70: 4 | L70: 3202 | M70: 4 | T70: 3785
A71: 830 | B71: 544 | C71: 9 | D71: 891 | E71: 15 | F71: 793 | G71: 13 | H71: 972 | I71: 16 | J71: 342 | K71: 5 | L71: 3336 | M71: 5 | T71: 3784
A72: 860 | B72: 687 | C72: 12 | D72: 1117 | E72: 18 | F72: 1003 | G72: 17 | H72: 1274 | I72: 21 | J72: 469 | K72: 7 | L72: 3406 | M72: 6 | T72: 3783
A73: 890 | B73: 735 | C73: 13 | D73: 1216 | E73: 20 | F73: 1098 | G73: 18 | H73: 1440 | I73: 25 | J73: 545 | K73: 9 | L73: 3448 | M73: 9 | T73: 3777
A74: 920 | B74: 744 | C74: 13 | D74: 1227 | E74: 20 | F74: 1117 | G74: 19 | H74: 1495 | I74: 24 | J74: 586 | K74: 9 | L74: 3503 | M74: 5 | T74: 3773
A75: 950 | B75: 917 | C75: 16 | D75: 1531 | E75: 25 | F75: 1375 | G75: 22 | H75: 1923 | I75: 31 | J75: 758 | K75: 12 | L75: 3511 | M75: 6 | T75: 3768
A76: 980 | B76: 770 | C76: 13 | D76: 1274 | E76: 21 | F76: 1177 | G76: 20 | H76: 1718 | I76: 28 | J76: 671 | K76: 11 | L76: 3497 | M76: 4 | T76: 3766
A77: 1010 | B77: 777 | C77: 14 | D77: 1281 | E77: 22 | F77: 1180 | G77: 20 | H77: 1720 | I77: 28 | J77: 692 | K77: 11 | L77: 3542 | M77: 6 | T77: 3760
A78: 1040 | B78: 714 | C78: 13 | D78: 1133 | E78: 19 | F78: 1055 | G78: 18 | H78: 1508 | I78: 25 | J78: 610 | K78: 10 | L78: 3553 | M78: 6 | T78: 3752
A79: 1070 | B79: 768 | C79: 14 | D79: 1179 | E79: 20 | F79: 1134 | G79: 19 | H79: 1478 | I79: 25 | J79: 620 | K79: 10 | L79: 3609 | M79: 6 | T79: 3746
A80: 1100 | B80: 897 | C80: 18 | D80: 1221 | E80: 24 | F80: 1258 | G80: 24 | H80: 1429 | I80: 27 | J80: 621 | K80: 12 | L80: 3664 | M80: 5 | T80: 3733
A81: 1130 | B81: 1644 | C81: 29 | D81: 2072 | E81: 35 | F81: 2432 | G81: 41 | H81: 1642 | I81: 27 | J81: 701 | K81: 11 | L81: 3635 | M81: 6 | T81: 3732
A82: 1160 | B82: 2752 | C82: 48 | D82: 3726 | E82: 63 | F82: 4158 | G82: 69 | H82: 2185 | I82: 36 | J82: 965 | K82: 16 | L82: 3688 | M82: 6 | T82: 3726
A83: 1190 | B83: 3381 | C83: 59 | D83: 4983 | E83: 84 | F83: 5100 | G83: 84 | H83: 2921 | I83: 48 | J83: 1373 | K83: 22 | L83: 3787 | M83: 5 | T83: 3707
A84: 1220 | B84: 1842 | C84: 33 | D84: 2766 | E84: 47 | F84: 2807 | G84: 47 | H84: 2080 | I84: 35 | J84: 975 | K84: 16 | L84: 3783 | M84: 7 | T84: 3702
A85: 1250 | B85: 1665 | C85: 29 | D85: 2547 | E85: 43 | F85: 2511 | G85: 42 | H85: 2209 | I85: 37 | J85: 1074 | K85: 17 | L85: 3840 | M85: 8 | T85: 3701
A86: 1280 | B86: 342 | C86: 7 | D86: 550 | E86: 10 | F86: 538 | G86: 10 | H86: 559 | I86: 10 | J86: 263 | K86: 4 | L86: 3788 | M86: 9 | T86: 3698
A87: 1310 | B87: 1213 | C87: 22 | D87: 1929 | E87: 33 | F87: 1826 | G87: 31 | H87: 2040 | I87: 34 | J87: 1012 | K87: 16 | L87: 3872 | M87: 5 | T87: 3688
A88: 1360 | B88: 302 | C88: 6 | D88: 504 | E88: 9 | F88: 466 | G88: 8 | H88: 517 | I88: 9 | J88: 261 | K88: 4 | L88: 3900 | M88: 10 | T88: 3687
A89: 1420 | B89: 416 | C89: 7 | D89: 701 | E89: 10 | F89: 641 | G89: 9 | H89: 666 | I89: 9 | J89: 332 | K89: 4 | L89: 3881 | M89: 6 | T89: 3664
A90: 1480 | B90: 5 | C90: 4 | D90: 19 | E90: 6 | F90: 14 | G90: 4 | H90: 4 | I90: 2 | J90: 5 | K90: 1 | L90: 5137 | M90: 504 | T90: 3661
A91: 1550 | B91: 22 | C91: 5 | D91: 1 | E91: 1 | F91: 0 | G91: 0 | H91: 1 | I91: 1 | J91: 9 | K91: 1 | L91: 8485 | M91: 1087 | T91: 3635
A92: Total | B92: 26830 | C92: 110 | D92: 34970 | E92: 150 | F92: 35110 | G92: 150 | H92: 35230 | I92: 120 | J92: 15001 | K92: 52 | L92: 3632 | M92: 2 | T92: 3632
T93: 3631
T94: 3609
A95: Table | B95: A4. | T95: 3608
A96: 450 | B96: 881 | C96: 14 | D96: 58 | E96: 7 | F96: 177 | G96: 3 | H96: 278 | I96: 11 | J96: 2593 | K96: 38 | L96: 8957 | M96: 68 | T96: 3603
A97: 550 | B97: 65 | C97: 1 | D97: 52 | E97: 4 | F97: 20 | G97: 1 | H97: 244 | I97: 8 | J97: 204 | K97: 4 | L97: 4720 | M97: 50 | T97: 3593
A98: 630 | B98: 142 | C98: 2 | D98: 120 | E98: 7 | F98: 36 | G98: 1 | H98: 301 | I98: 8 | J98: 434 | K98: 7 | L98: 5656 | M98: 38 | T98: 3563
A99: 700 | B99: 330 | C99: 5 | D99: 182 | E99: 6 | F99: 78 | G99: 2 | H99: 546 | I99: 12 | J99: 998 | K99: 15 | L99: 6064 | M99: 28 | T99: 3556
A100: 760 | B100: 34 | C100: 1 | D100: 201 | E100: 9 | F100: 22 | G100: 1 | H100: 362 | I100: 15 | J100: 133 | K100: 5 | L100: 3404 | M100: 33 | T100: 3554
A101: 820 | B101: 29 | C101: 1 | D101: 280 | E101: 11 | F101: 29 | G101: 1 | H101: 368 | I101: 16 | J101: 142 | K101: 5 | L101: 3481 | M101: 37 | T101: 3553
A102: 880 | B102: 31 | C102: 1 | D102: 379 | E102: 15 | F102: 36 | G102: 1 | H102: 489 | I102: 19 | J102: 181 | K102: 6 | L102: 3416 | M102: 31 | T102: 3549
A103: 940 | B103: 27 | C103: 1 | D103: 363 | E103: 14 | F103: 36 | G103: 1 | H103: 388 | I103: 15 | J103: 181 | K103: 6 | L103: 3777 | M103: 31 | T103: 3547
A104: 1000 | B104: 31 | C104: 1 | D104: 387 | E104: 15 | F104: 38 | G104: 1 | H104: 458 | I104: 17 | J104: 185 | K104: 6 | L104: 3547 | M104: 22 | T104: 3542
A105: 1060 | B105: 43 | C105: 2 | D105: 517 | E105: 19 | F105: 55 | G105: 2 | H105: 550 | I105: 20 | J105: 212 | K105: 7 | L105: 3480 | M105: 19 | T105: 3536
A106: 1120 | B106: 79 | C106: 3 | D106: 921 | E106: 33 | F106: 106 | G106: 4 | H106: 543 | I106: 21 | J106: 211 | K106: 7 | L106: 3491 | M106: 32 | T106: 3526
A107: 1160 | B107: 166 | C107: 6 | D107: 1865 | E107: 64 | F107: 242 | G107: 8 | H107: 412 | I107: 16 | J107: 182 | K107: 6 | L107: 3687 | M107: 33 | T107: 3524
A108: 1200 | B108: 365 | C108: 12 | D108: 4960 | E108: 170 | F108: 546 | G108: 18 | H108: 494 | I108: 19 | J108: 235 | K108: 8 | L108: 3806 | M108: 32 | T108: 3520
A109: 1240 | B109: 301 | C109: 11 | D109: 4120 | E109: 140 | F109: 448 | G109: 16 | H109: 319 | I109: 14 | J109: 154 | K109: 5 | L109: 3832 | M109: 47 | T109: 3511
A110: 1280 | B110: 148 | C110: 6 | D110: 1961 | E110: 79 | F110: 217 | G110: 9 | H110: 132 | I110: 11 | J110: 79 | K110: 3 | L110: 4185 | M110: 123 | T110: 3503
A111: 1320 | B111: 188 | C111: 8 | D111: 2730 | E111: 110 | F111: 286 | G111: 12 | H111: 155 | I111: 10 | J111: 77 | K111: 3 | L111: 3876 | M111: 82 | T111: 3497
A112: 1380 | B112: 140 | C112: 4 | D112: 2016 | E112: 58 | F112: 211 | G112: 6 | H112: 219 | I112: 10 | J112: 85 | K112: 2 | L112: 3484 | M112: 59 | T112: 3491
A113: 1450 | B113: 31 | C113: 2 | D113: 437 | E113: 33 | F113: 44 | G113: 3 | H113: 24 | I113: 7 | J113: 24 | K113: 2 | L113: 4998 | M113: 503 | T113: 3486
A114: Total | B114: 3033 | C114: 26 | D114: 21560 | E114: 280 | F114: 2630 | G114: 31 | H114: 6283 | I114: 62 | J114: 6311 | K114: 46 | L114: 5035 | M114: 38 | T114: 3484
T115: 3481
T116: 3480
A117: Table | B117: A5. | T117: 3448
A118: 400 | B118: 625 | C118: 15 | D118: 42 | E118: 7 | F118: 123 | G118: 3 | H118: 13 | I118: 1 | J118: 1847 | K118: 43 | L118: 9680 | M118: 123 | T118: 3416
A119: 500 | B119: 243 | C119: 6 | D119: 213 | E119: 7 | F119: 64 | G119: 2 | H119: 50 | I119: 2 | J119: 746 | K119: 18 | L119: 5721 | M119: 45 | T119: 3406
A120: 560 | B120: 108 | C120: 3 | D120: 217 | E120: 10 | F120: 37 | G120: 1 | H120: 30 | I120: 1 | J120: 374 | K120: 9 | L120: 5395 | M120: 50 | T120: 3404
A121: 610 | B121: 173 | C121: 4 | D121: 413 | E121: 14 | F121: 61 | G121: 2 | H121: 58 | I121: 2 | J121: 578 | K121: 14 | L121: 5035 | M121: 37 | T121: 3401
A122: 650 | B122: 246 | C122: 6 | D122: 414 | E122: 14 | F122: 78 | G122: 2 | H122: 51 | I122: 2 | J122: 801 | K122: 19 | L122: 5793 | M122: 37 | T122: 3383
A123: 680 | B123: 191 | C123: 5 | D123: 452 | E123: 13 | F123: 69 | G123: 2 | H123: 57 | I123: 2 | J123: 639 | K123: 15 | L123: 5237 | M123: 32 | T123: 3336
A124: 710 | B124: 188 | C124: 5 | D124: 607 | E124: 16 | F124: 81 | G124: 2 | H124: 76 | I124: 2 | J124: 656 | K124: 16 | L124: 4788 | M124: 24 | T124: 3326
A125: 740 | B125: 87 | C125: 3 | D125: 624 | E125: 18 | F125: 68 | G125: 2 | H125: 71 | I125: 2 | J125: 384 | K125: 9 | L125: 4011 | M125: 27 | T125: 3248
A126: 770 | B126: 103 | C126: 3 | D126: 1023 | E126: 28 | F126: 102 | G126: 3 | H126: 128 | I126: 3 | J126: 536 | K126: 13 | L126: 3608 | M126: 11 | T126: 3202
A127: 800 | B127: 96 | C127: 3 | D127: 1167 | E127: 32 | F127: 115 | G127: 3 | H127: 148 | I127: 4 | J127: 573 | K127: 14 | L127: 3486 | M127: 10 | T127: 3130
A128: 830 | B128: 123 | C128: 3 | D128: 1747 | E128: 44 | F128: 162 | G128: 4 | H128: 204 | I128: 5 | J128: 809 | K128: 19 | L128: 3524 | M128: 12 | T128: 3031
A129: 860 | B129: 158 | C129: 4 | D129: 2373 | E129: 59 | F129: 219 | G129: 5 | H129: 279 | I129: 7 | J129: 1106 | K129: 26 | L129: 3520 | M129: 10 | T129: 2673
A130: 890 | B130: 170 | C130: 3 | D130: 2585 | E130: 37 | F130: 237 | G130: 3 | H130: 309 | I130: 4 | J130: 1229 | K130: 15 | L130: 3526 | M130: 9 | T130: 2257
A131: 920 | B131: 169 | C131: 3 | D131: 2587 | E131: 35 | F131: 239 | G131: 3 | H131: 313 | I131: 4 | J131: 1269 | K131: 15 | L131: 3556 | M131: 9 | T131: 2185
A132: 950 | B132: 158 | C132: 3 | D132: 2483 | E132: 35 | F132: 226 | G132: 3 | H132: 305 | I132: 4 | J132: 1243 | K132: 15 | L132: 3563 | M132: 10
A133: 980 | B133: 164 | C133: 3 | D133: 2615 | E133: 39 | F133: 237 | G133: 4 | H133: 320 | I133: 4 | J133: 1336 | K133: 16 | L133: 3603 | M133: 9
A134: 1010 | B134: 136 | C134: 2 | D134: 2083 | E134: 33 | F134: 191 | G134: 3 | H134: 243 | I134: 4 | J134: 1087 | K134: 13 | L134: 3707 | M134: 13
A135: 1040 | B135: 127 | C135: 2 | D135: 2016 | E135: 28 | F135: 183 | G135: 3 | H135: 251 | I135: 3 | J135: 1088 | K135: 13 | L135: 3661 | M135: 8
A136: 1070 | B136: 161 | C136: 3 | D136: 2530 | E136: 38 | F136: 232 | G136: 3 | H136: 325 | I136: 4 | J136: 1447 | K136: 17 | L136: 3702 | M136: 7
A137: 1100 | B137: 119 | C137: 2 | D137: 1925 | E137: 28 | F137: 176 | G137: 3 | H137: 264 | I137: 4 | J137: 1199 | K137: 14 | L137: 3733 | M137: 10
A138: 1130 | B138: 119 | C138: 2 | D138: 1885 | E138: 29 | F138: 174 | G138: 3 | H138: 271 | I138: 4 | J138: 1263 | K138: 15 | L138: 3773 | M138: 11
A139: 1160 | B139: 126 | C139: 2 | D139: 1941 | E139: 30 | F139: 182 | G139: 3 | H139: 282 | I139: 4 | J139: 1361 | K139: 16 | L139: 3829 | M139: 9
A140: 1190 | B140: 165 | C140: 3 | D140: 2649 | E140: 39 | F140: 240 | G140: 3 | H140: 371 | I140: 5 | J140: 1826 | K140: 21 | L140: 3861 | M140: 8
A141: 1220 | B141: 164 | C141: 3 | D141: 2703 | E141: 38 | F141: 243 | G141: 3 | H141: 378 | I141: 5 | J141: 1890 | K141: 22 | L141: 3885 | M141: 10
A142: 1250 | B142: 158 | C142: 3 | D142: 2645 | E142: 39 | F142: 240 | G142: 3 | H142: 386 | I142: 5 | J142: 1908 | K142: 23 | L142: 3868 | M142: 6
A143: 1280 | B143: 140 | C143: 3 | D143: 2386 | E143: 35 | F143: 215 | G143: 3 | H143: 316 | I143: 5 | J143: 1574 | K143: 19 | L143: 3880 | M143: 13
A144: 1310 | B144: 123 | C144: 1 | D144: 2074 | E144: 16 | F144: 189 | G144: 1 | H144: 278 | I144: 2 | J144: 1417 | K144: 3 | L144: 3918 | M144: 8
A145: 1360 | B145: 176 | C145: 2 | D145: 2981 | E145: 20 | F145: 268 | G145: 2 | H145: 371 | I145: 2 | J145: 1940 | K145: 3 | L145: 3957 | M145: 7
A146: 1450 | B146: 1001 | C146: 5 | D146: 16785 | E146: 58 | F146: 1514 | G146: 6 | H146: 2071 | I146: 6 | J146: 10557 | K146: 10 | L146: 3916 | M146: 4
A147: 1550 | B147: 16 | C147: 3 | D147: 169 | E147: 10 | F147: 20 | G147: 1 | H147: 31 | I147: 2 | J147: 186 | K147: 7 | L147: 4180 | M147: 71
A148: Total | B148: 5734 | C148: 23 | D148: 64330 | E148: 170 | F148: 6184 | G148: 17 | H148: 8247 | I148: 20 | J148: 42869 | K148: 95 | L148: 3947 | M148: 7

Sheet Very_Old_03
A1: Sample Number | B1: Million Years
A2: lc_1 | B2: 5700
A3: 3_1 | B3: 4810
A4: 5_1 | B4: 5760
A5: 5_2 | B5: 5320
A6: 5_3 | B6: 5060
A7: 7a_1 | B7: 6930
A8: 7a_2 | B8: 6240
A9: 7a_3 | B9: 5760
A10: 7a_4 | B10: 5180
A11: 7a_7 | B11: 4810
A12: 7a_8 | B12: 5250
A13: 7a_9 | B13: 4880
A14: 7a_14 | B14: 5180
A15: 7b_1 | B15: 5400
A16: 7b_2 | B16: 5110
A17: 7c_1 | B17: 6080
A18: 7c_2 | B18: 5330
A19: 7c_4 | B19: 4990
A20: 7c_5 | B20: 4770

Sheet Very_Old_04
A4: 300 | B4: 3.4 | C4: 0.033 | D4: 0.0035 | E4: 9670 | F4: 24 | I4: Bulk Sample | J4: Million Years
A5: 400 | B5: 4.3 | C5: 0.029 | D5: 0.0035 | E5: 8127 | F5: 21 | J5: 9670
A6: 450 | B6: 3.3 | C6: 0.028 | D6: 0.0036 | E6: 6256 | F6: 22 | J6: 8560
A7: 500 | B7: 6.3 | C7: 0.039 | D7: 0.0061 | E7: 2143 | F7: 21 | J7: 8127
A8: 600 | B8: 30.5 | C8: 0.05 | D8: 0.0109 | E8: 855 | F8: 10 | J8: 6256
A9: 700 | B9: 6.5 | C9: 0.0082 | D9: 0.0166 | E9: 2312 | F9: 22
A10: 800 | B10: 10.5 | C10: 0.0058 | D10: 0.0194 | E10: 2771 | F10: 22 | I10: Glass Sample | J10: Million Years
A11: 900 | B11: 19.6 | C11: 0.0044 | D11: 0.0212 | E11: 3173 | F11: 26 | J11: 9905
A12: 1000 | B12: 18 | C12: 0.0039 | D12: 0.021 | E12: 3333 | F12: 28 | J12: 7388
A13: 1050 | B13: 8.6 | C13: 0.0046 | D13: 0.0241 | E13: 3016 | F13: 25 | J13: 5708
A14: 1100 | B14: 28.1 | C14: 0.0132 | D14: 0.02 | E14: 1816 | F14: 14
A15: 1150 | B15: 12 | C15: 0.0045 | D15: 0.0228 | E15: 3103 | F15: 25
A16: 1200 | B16: 16.8 | C16: 0.0038 | D16: 0.0249 | E16: 3313 | F16: 29
A17: 1250 | B17: 6.2 | C17: 0.0034 | D17: 0.023 | E17: 3531 | F17: 33
A18: 1300 | B18: 5.6 | C18: 0.0037 | D18: 0.02 | E18: 3638 | F18: 31
A19: 1350 | B19: 4.9 | C19: 0.0036 | D19: 0.0197 | E19: 3722 | F19: 33
A20: 1400 | B20: 8.8 | C20: 0.0036 | D20: 0.0191 | E20: 3774 | F20: 32
A21: 1450 | B21: 5.2 | C21: 0.15 | D21: 0.0198 | E21: 3736 | F21: 18
A22: 1500 | B22: 0.1 | C22: 0 | D22: 0.004 | E22: 8560 | F22: 630
A26: 300 | B26: 1.5 | C26: 0.132 | D26: 0.0034 | E26: 9905 | F26: 56
A27: 400 | B27: 2.3 | C27: 0.027 | D27: 0.0033 | E27: 7388 | F27: 49
A28: 500 | B28: 1.1 | C28: 0.0047 | D28: 0.0031 | E28: 4006 | F28: 47
A29: 700 | B29: 4.3 | C29: 0.0207 | D29: 0.0071 | E29: 2804 | F29: 34
A30: 900 | B30: 12.6 | C30: 0.0174 | D30: 0.0104 | E30: 2358 | F30: 21
A31: 1100 | B31: 23.6 | C31: 0.0076 | D31: 0.0224 | E31: 2407 | F31: 19
A32: 1300 | B32: 22.8 | C32: 0.0029 | D32: 0.0231 | E32: 3794 | F32: 37
A33: 1400 | B33: 40.6 | C33: 0.0026 | D33: 0.0263 | E33: 3713 | F33: 40
A34: 1550 | B34: 0.2 | C34: 0.0025 | D34: 0.0108 | E34: 5708 | F34: 94

Sheet Very_Old_06
A4: Temperature | B4: Age | C4: Error | D4: Minimum | E4: Maximum
A5: 600 | B5: 5845 | C5: 16 | D5: =(B5-C5) -> 5829 | E5: =(B5 + C5) -> 5861
A6: 760 | B6: 955 | C6: 8 | D6: 947 | E6: 963
A7: 800 | B7: 1488 | C7: 15 | D7: 1473 | E7: 1503
A8: 820 | B8: 1393 | C8: 22 | D8: 1371 | E8: 1415
A9: 920 | B9: 1312 | C9: 36 | D9: 1276 | E9: 1348
A10: 1000 | B10: 701 | C10: 93 | D10: 608 | E10: 794
A11: 1060 | B11: 615 | C11: 111 | D11: 504 | E11: 726
A12: 1160 | B12: 650 | C12: 420 | D12: 230 | E12: 1070
A13: 1230 | B13: 1880 | C13: 500 | D13: 1380 | E13: 2380
A14: 1270 | B14: 1030 | C14: 630 | D14: 400 | E14: 1660
A15: 1300 | B15: 1240 | C15: 1010 | D15: 230 | E15: 2250
A16: 1330 | B16: 4840 | C16: 670 | D16: 4170 | E16: 5510
A17: 1410 | B17: 4160 | C17: 860 | D17: 3300 | E17: 5020
A18: 1450 | B18: 2590 | C18: 1860 | D18: 730 | E18: 4450
A19: 1550 | B19: 1750 | C19: 1920 | D19: -170 | E19: 3670
A20: 1610 | B20: 3900 | C20: 2600 | D20: 1300 | E20: 6500

Sheet Very_Old_07
M1: Age
M2: Million
B3: Sample | M3: Years
B4: EL10 | C4: 33 | D4: Pyrrhotite | E4: 0–1 | F4: Eclogitic | G4: 9 | H4: 4 | I4: 164 | J4: 9 | K4: 4.71 | L4: 0.07 | M4: 1658 | N4: 47
B5: EL26 | C5: 2 | D5: Pyrrhotite | E5: 0–2 | F5: Eclogitic | G5: 493 | H5: 6 | I5: 587 | J5: 74 | K5: 4.35 | L5: 0.94 | M5: 430 | N5: 55
B6: EL57 | C6: 6 | D6: Chalcopyrite | E6: 0–4 | F6: Eclogitic | G6: 764 | H6: 262 | I6: 18.4 | J6: 0.9 | K6: 2.506 | L6: 0.019 | M6: 7457 | N6: 178
B7: EL61 | C7: 1 | D7: Pyrrhotite | E7: 0–13 | F7: Eclogitic | G7: 255 | H7: 12 | I7: 168 | J7: 28 | K7: 2.51 | L7: 0.6 | M7: 847 | N7: 127
B8: EL23 | C8: 1 | D8: Pentlandite | E8: 19–22 | F8: peridotitic | G8: 73 | H8: 89 | I8: 4.12 | J8: 0.52 | K8: 0.208 | L8: 0.0062 | M8: 1264 | N8: 100
B9: EL50 | C9: 2 | D9: Pentlandite | E9: 14–25 | F9: Peridotitic | G9: 981 | H9: 1274 | I9: 3.755 | J9: 0.113 | K9: 0.195 | L9: 0.002 | M9: 1171 | N9: 27
B10: EL51 | C10: 1 | D10: Pentlandite | E10: 7–20 | F10: Peridotitic | G10: 2411 | H10: – | I10: – | J10: –
B11: EL54_1 | C11: 1 | D11: Pentlandite | E11: 10–26 | F11: Peridotitic | G11: 1076 | H11: 9967 | I11: 0.52 | J11: 0.0016 | K11: 0.1186 | L11: 0.0005 | M11: -8281 | N11: 218
B12: EL54_3 | C12: 2 | D12: Pentlandite | E12: 16–32 | F12: Peridotitic | G12: 3780 | H12: 17626 | I12: 1.033 | J12: 0.031 | K12: 0.126 | L12: 0.0004 | M12: -362 | N12: 22
B13: EL55_1 | C13: 1 | D13: Pentlandite | E13: 15–18 | F13: Peridotitic | G13: 723 | H13: 11460 | I13: 0.303 | J13: 0.009 | K13: 0.1109 | L13: 0.001 | M13: 7973 | N13: 324
B14: EL55_2 | C14: 2 | D14: Pentlandite | E14: 17–21 | F14: Peridotitic | G14: 513 | H14: 1279 | I14: 1.94 | J14: 0.066 | K14: 0.127 | L14: 0.007 | M14: -104 | N14: 140
B15: EL65 | C15: 1 | D15: Pentlandite | E15: 20–34 | F15: Peridotitic | G15: 664 | H15: 12369 | I15: 0.2603 | J15: 0.0078 | K15: 0.112 | L15: 0.0006 | M15: -5773 | N15: 155
B19: Sample Name | C19: Million Years
B20: EL10 | C20: 1658
B21: EL26 | C21: 430
B22: EL57 | C22: 7457
B23: EL61 | C23: 847
B24: EL23 | C24: 1264
B25: EL50 | C25: 1171
B26: EL54_1 | C26: -8281
B27: EL54_3 | C27: -362
B28: EL55_1 | C28: 7973
B29: EL55_2 | C29: -104
B30: EL65 | C30: -5773

Sheet Very_Old_08
F3: Million
A4: Premier Mine | F4: Years
A5: 82701N | B5: 0.33 | C5: 0.09 | D5: 5.63 | E5: 0.9 | F5: 5800
A6: 827021 | B6: 0.19 | C6: 0.08 | D6: 2.2 | E6: 1 | F6: 5200
A7: 82703A | B7: 0.02 | C7: 0.02 | D7: 1.29 | E7: 0.8 | F7: 8200
A8: 8270413 | B8: 0.72 | C8: 0.19 | D8: 2.7 | E8: 2.7 | F8: 3300
A10: Unidentified Origin
A11: 821104N | B11: 0.7 | C11: 0.06 | D11: 7.23 | E11: 1.2 | F11: 4800
A12: 821105H | B12: 1.91 | C12: 0.23 | D12: 62.3 | E12: 0.7 | F12: 5700
A13: 821106N | B13: 0.76 | C13: 0.11 | D13: 5.56 | E13: 0.8 | F13: 4400
A14: 821107N | B14: 1.02 | C14: 0.08 | D14: 11 | E14: 0.5 | F14: 5000
A15: 8211083 | B15: 0.48 | C15: 0.09 | D15: 3.78 | E15: 0.8 | F15: 4500
A16: 8211091 | B16: 0.23 | C16: 0.04 | D16: 24.3 | E16: 0.6 | F16: 9100
A17: 82111ON | B17: 0.34 | C17: 0.04 | D17: 8.92 | E17: 0.6 | F17: 6600
A18: 82111lN | B18: 625 | C18: 46 | D18: 39.2 | E18: 0.8 | F18: 150
A22: Sample Number | B22: Age
A23: Premier Mine | B23: Million Years
A24: 82701N | B24: 5800
A25: 827021 | B25: 5200
A26: 82703A | B26: 8200
A27: 8270413 | B27: 3300
A29: Unidentified Origin
A30: 821104N | B30: 4800
A31: 821105H | B31: 5700
A32: 821106N | B32: 4400
A33: 821107N | B33: 5000
A34: 8211083 | B34: 4500
A35: 8211091 | B35: 9100
A36: 82111ON | B36: 6600
A37: 821111N | B37: 150

Sheet Very_Old_09
A4: NWA_A_Step_1 | B4: 0.2 | C4: 0.0395 | D4: 0.0072 | E4: 0.003 | F4: 0.012 | G4: 15.46 | H4: 0.13 | I4: 0.06 | J4: 0.0113 | K4: 546.69 | L4: 99.92 | M4: 2840 | N4: 261.5
A5: NWA_A_Step_2 | B5: 0.19 | C5: 0.0644 | D5: 0.0072 | E5: 0.04 | F5: 0.013 | G5: 7.92 | H5: 0.13 | I5: 0.024 | J5: 0.012 | K5: 82.32 | L5: 9.68 | M5: 821 | N5: 77.6
A6: NWA_A_Step_3 | B6: 0.19 | C6: 0.3129 | D6: 0.0072 | E6: 0.04 | F6: 0.012 | G6: 9.81 | H6: 0.13 | I6: 0.044 | J6: 0.0113 | K6: 96.98 | L6: 2.32 | M6: 934.7 | N6: 17.8
A7: NWA_A_Step_4 | B7: 0.19 | C7: 0.288 | D7: 0.0072 | E7: 0.036 | F7: 0.013 | G7: 21.14 | H7: 0.13 | I7: 0.02 | J7: 0.012 | K7: 76.92 | L7: 2.04 | M7: 777.2 | N7: 17
A8: NWA_A_Step_5 | B8: 0.19 | C8: 0.4785 | D8: 0.0072 | E8: 0.064 | F8: 0.013 | G8: 7.18 | H8: 0.13 | I8: 0.04 | J8: 0.0113 | K8: 62.42 | L8: 1.02 | M8: 654 | N8: 9.4
A9: NWA_A_Step_6 | B9: 0.19 | C9: 0.3791 | D9: 0.0072 | E9: 0.023 | F9: 0.013 | G9: 9.82 | H9: 0.13 | I9: 0.024 | J9: 0.012 | K9: 46.92 | L9: 1.02 | M9: 512.4 | N9: 9.9 | R9: Meteorite | S9: Sample | T9: Million Years
A10: NWA_A_Step_7 | B10: 0.23 | C10: 1.6754 | D10: 0.0138 | E10: 0.24 | F10: 0.013 | G10: 50.64 | H10: 0.13 | I10: 0.18 | J10: 0.012 | K10: 41.12 | L10: 0.36 | M10: 456.4 | N10: 4.1 | R10: NWA 1950 | S10: Spot-21 | T10: 6920 | V10: 4643
A11: NWA_A_Step_8 | B11: 0.21 | C11: 2.1683 | D11: 0.0072 | E11: 0.171 | F11: 0.013 | G11: 41.23 | H11: 0.13 | I11: 0.108 | J11: 0.0113 | K11: 31.53 | L11: 0.14 | M11: 359.8 | N11: 2.2 | S11: Spot-22 | T11: 6729 | V11: 5046
A12: NWA_B_Step_1 | B12: 0.19 | C12: 0 | D12: 0.0059 | E12: 0.007 | F12: 0.013 | G12: 7.19 | H12: 0.13 | I12: N/A | J12: N/A | K12: N/A | L12: N/A | M12: N/A | N12: N/A | S12: Spot-23 | T12: 4643 | V12: 5077
A13: NWA_B_Step_2 | B13: 0.2 | C13: 0.0934 | D13: 0.0072 | E13: 0.036 | F13: 0.013 | G13: 46.95 | H13: 0.13 | I13: 0.048 | J13: 0.012 | K13: 118.72 | L13: 9.41 | M13: 1091.3 | N13: 65 | V13: 5081
A14: NWA_B_Step_3 | B14: 0.19 | C14: 0.3501 | D14: 0.0072 | E14: 0.027 | F14: 0.013 | G14: 24.24 | H14: 0.13 | I14: 0.032 | J14: 0.012 | K14: 78.52 | L14: 1.7 | M14: 790.2 | N14: 14.2 | R14: ALH-77005 | S14: Spot-1 | T14: 6464 | V14: 5342
A15: NWA_B_Step_4 | B15: 0.23 | C15: 0.6318 | D15: 0.0072 | E15: 0.077 | F15: 0.013 | G15: 33.72 | H15: 0.13 | I15: 0.08 | J15: 0.012 | K15: 70.49 | L15: 0.89 | M15: 723.6 | N15: 8.1 | S15: Spot-2 | T15: 6126 | V15: 6126
A16: NWA_B_Step_5 | B16: 0.22 | C16: 0.8016 | D16: 0.0072 | E16: 0.142 | F16: 0.013 | G16: 35.63 | H16: 0.14 | I16: 0.096 | J16: 0.012 | K16: 54.98 | L16: 0.57 | M16: 587.4 | N16: 5.7 | S16: Spot-11 | T16: 6201 | V16: 6192
A17: NWA_B_Step_6 | B17: 0.2 | C17: 2.8765 | D17: 0.0102 | E17: 0.379 | F17: 0.013 | G17: 58.39 | H17: 0.14 | I17: 0.288 | J17: 0.012 | K17: 41.52 | L17: 0.16 | M17: 460.2 | N17: 2.6 | S17: Spot-15 | T17: 6192 | V17: 6201
A18: NWA_B_Step_7 | B18: 0.26 | C18: 4.0817 | D18: 0.0138 | E18: 0.322 | F18: 0.012 | G18: 50.83 | H18: 0.14 | I18: 0.236 | J18: 0.0113 | K18: 31.73 | L18: 0.12 | M18: 361.9 | N18: 2.1 | S18: Spot-17 | T18: 7083 | V18: 6464
A19: NWA_B_Step_8 | B19: 0.19 | C19: 0.4371 | D19: 0.0072 | E19: 0.04 | F19: 0.012 | G19: 5.31 | H19: 0.14 | I19: 0.016 | J19: 0.0113 | K19: 43.09 | L19: 0.83 | M19: 475.6 | N19: 8.3 | S19: Spot-18 | T19: 5077 | V19: 6729
S20: Spot-21 | T20: 5081 | V20: 6920
A21: NWA_Spot_1 | B21: 0.07 | C21: 0.1265 | D21: 0.0041 | E21: 0.0327 | F21: 0.0041 | G21: 8.88 | H21: 0.01 | I21: 0.1576 | J21: 0 | K21: 319.74 | L21: 10.46 | M21: 2120 | N21: 41 | S21: Spot-23 | T21: 8180 | V21: 7083
A22: NWA_Spot_2 | B22: 0.31 | C22: 0.4612 | D22: 0.0083 | E22: 0.0818 | F22: 0 | G22: 21.7 | H22: 0.01 | I22: 0.1262 | J22: 0.004 | K22: 92.51 | L22: 1.79 | M22: 901 | N22: 14 | S22: Spot-24 | T22: 5342 | V22: 7230
A23: NWA_Spot_3 | B23: 0.06 | C23: 0.7355 | D23: 0.0083 | E23: 0.0859 | F23: 0.0041 | G23: 25.85 | H23: 0.01 | I23: 0.1652 | J23: 0.004 | K23: 83.04 | L23: 0.94 | M23: 827 | N23: 8 | S23: Spot-25 | T23: 7230 | V23: 8180
A24: NWA_Spot_4 | B24: 0.24 | C24: 1.1372 | D24: 0.0083 | E24: 0.1349 | F24: 0.0041 | G24: 37.26 | H24: 0.01 | I24: 0.2581 | J24: 0.004 | K24: 80.07 | L24: 0.62 | M24: 803 | N24: 6 | S24: Spot-26 | T24: 5046 | V24: =COUNT(V10:V23) -> 14
A25: NWA_Spot_5 | B25: 0.3 | C25: 2.069 | D25: 0.0207 | E25: 0.3516 | F25: 0.0058 | G25: 148.99 | H25: 0.01 | I25: 0.5485 | J25: 0.004 | K25: 85.15 | L25: 0.86 | M25: 844 | N25: 8
A26: NWA_Spot_6 | B26: 0.25 | C26: 1.1171 | D26: 0.0099 | E26: 0.1554 | F26: 0.0082 | G26: 44.79 | H26: 0.18 | I26: 0.2161 | J26: 0.0204 | K26: 130.44 | L26: 1.17 | M26: 1170 | N26: 9
A27: NWA_Spot_7 | B27: 0.33 | C27: 2.1782 | D27: 0.0135 | E27: 0.278 | F27: 0.0116 | G27: 97.47 | H27: 0.18 | I27: 0.3302 | J27: 0.0204 | K27: 82.65 | L27: 0.53 | M27: 824 | N27: 5
A28: NWA_Spot_8 | B28: 0.3 | C28: 4.3456 | D28: 0.0174 | E28: 0.3557 | F28: 0.0091 | G28: 50.5 | H28: 0.18 | I28: 0.4466 | J28: 0.0204 | K28: 51.7 | L28: 0.22 | M28: 557 | N28: 3
A29: NWA_Spot_9 | B29: 0.31 | C29: 3.1627 | D29: 0.0099 | E29: 0.2984 | F29: 0.0082 | G29: 102.54 | H29: 0.18 | I29: 0.3648 | J29: 0.0204 | K29: 57.1 | L29: 0.2 | M29: 607 | N29: 3
A30: NWA_Spot_10 | B30: 0.4 | C30: 3.6151 | D30: 0.0083 | E30: 0.4804 | F30: 0.0046 | G30: 120.66 | H30: 0.01 | I30: 0.426 | J30: 0.01 | K30: 51.19 | L30: 0.16 | M30: 553 | N30: 3
A31: NWA_Spot_11 | B31: 0.71 | C31: 4.2725 | D31: 0.0124 | E31: 0.3945 | F31: 0.0124 | G31: 120.36 | H31: 0.01 | I31: 0.5341 | J31: 0.0108 | K31: 71.28 | L31: 0.27 | M31: 730 | N31: 4
A32: NWA_Spot_12 | B32: 1.56 | C32: 3.376 | D32: 0.0124 | E32: 0.3986 | F32: 0.0046 | G32: 100.7 | H32: 0.01 | I32: 0.6633 | J32: 0.0108 | K32: 70.78 | L32: 0.53 | M32: 726 | N32: 5
A33: NWA_Spot_13 | B33: 0.77 | C33: 0.5326 | D33: 0.0046 | E33: 0.4518 | F33: 0.0074 | G33: 124.96 | H33: 0.15 | I33: 1.0249 | J33: 0.0146 | K33: 492.7 | L33: 4.53 | M33: 2693 | N33: 15
A34: NWA_Spot_14 | B34: 25.52 | C34: _0.0716 | D34: 0.1943 | E34: 0.4988 | F34: 0.037 | G34: 129.15 | H34: 0.01 | I34: 0.9778 | J34: 0.1321 | K34: N/A | L34: N/A | M34: N/A | N34: N/A
A35: NWA_Spot_15 | B35: 1.04 | C35: 1.2255 | D35: 0.0083 | E35: 0.4988 | F35: 0.0058 | G35: 187.65 | H35: 0.01 | I35: 0.4423 | J35: 0.0057 | K35: 179.72 | L35: 1.48 | M35: 1469 | N35: 10
A36: NWA_Spot_16 | B36: 0.5 | C36: 0.6734 | D36: 0.0083 | E36: 0.2617 | F36: 0.0169 | G36: 32.36 | H36: 0.06 | I36: 0.6054 | J36: 0.0184 | K36: 353.23 | L36: 4.4 | M36: 2246 | N36: 17
A37: NWA_Spot_17 | B37: 0.11 | C37: 0.4943 | D37: 0.0083 | E37: 0.0899 | F37: 0.0183 | G37: 8.92 | H37: 0.06 | I37: 0.2876 | J37: 0.0184 | K37: 183.39 | L37: 3.08 | M37: 1490 | N37: 18
A38: NWA_Spot_18 | B38: 0.28 | C38: 1.5004 | D38: 0.0083 | E38: 0.3352 | F38: 0.0169 | G38: 101.78 | H38: 0.06 | I38: 0.359 | J38: 0.018 | K38: 138.48 | L38: 0.79 | M38: 1223 | N38: 7
A39: NWA_Spot_19 | B39: 0.14 | C39: 0.5324 | D39: 0.0041 | E39: 0.2044 | F39: 0.0169 | G39: 39.34 | H39: 0.06 | I39: 0.3116 | J39: 0.0184 | K39: 209.97 | L39: 1.65 | M39: 1631 | N39: 10
A40: NWA_Spot_20 | B40: 0.25 | C40: 0.2726 | D40: 0.0056 | E40: 0.0998 | F40: 0.0078 | G40: 16.31 | H40: 0.07 | I40: 0.3725 | J40: 0.0129 | K40: 748.33 | L40: 15.43 | M40: 3303 | N40: 32
A41: NWA_Spot_21 | B41: 1.83 | C41: 0.1412 | D41: 0.0056 | E41: 0.2061 | F41: 0.0078 | G41: 8.72 | H41: 0.07 | I41: 0.7225 | J41: 0.0146 | K41: 6476.37 | L41: 257.7 | M41: 6920 | N41: 71
A42: NWA_Spot_22 | B42: 0.9 | C42: 0.1747 | D42: 0.0056 | E42: 0.2101 | F42: 0.0078 | G42: 7.96 | H42: 0.07 | I42: 0.7107 | J42: 0.0146 | K42: 5810.09 | L42: 186.62 | M42: 6729 | N42: 57
A43: NWA_Spot_23 | B43: 0.61 | C43: 0.3219 | D43: 0.0056 | E43: 0.1202 | F43: 0.0078 | G43: 10.44 | H43: 0.07 | I43: 0.45 | J43: 0.0146 | K43: 1730.51 | L43: 30.22 | M43: 4643 | N43: 30
A44: data | B44: for | C44: ALH77005
A45: ALH77005_1 | B45: 2.8 | C45: 0.4584 | D45: 0.0053 | E45: 0.5581 | F45: 0.0217 | G45: 18.44 | H45: 0.04 | I45: 2.3031 | J45: 0.0165 | K45: 4995.77 | L45: 58.02 | M45: 6464 | N45: 22
A46: ALH77005_2 | B46: 1.12 | C46: 0.2682 | D46: 0.0053 | E46: 0.2841 | F46: 0.0149 | G46: 12.17 | H46: 0.04 | I46: 0.9408 | J46: 0.0179 | K46: 4118.09 | L46: 81.39 | M46: 6126 | N46: 36
A47: ALH77005_3 | B47: 0.11 | C47: 0.1386 | D47: 0.0068 | E47: 0.2044 | F47: 0.0129 | G47: 106.6 | H47: 0 | I47: 0.1818 | J47: 0.0082 | K47: 232.31 | L47: 11.41 | M47: 1742 | N47: 55
A48: ALH77005_4 | B48: 0.11 | C48: 0.7616 | D48: 0.0068 | E48: 0.1145 | F48: 0.0129 | G48: 38.38 | H48: 0 | I48: 0.1238 | J48: 0.0045 | K48: 47.64 | L48: 0.45 | M48: 519 | N48: 5
A49: ALH77005_5 | B49: 0.37 | C49: 0.4232 | D49: 0.0099 | E49: 0.0899 | F49: 0.0123 | G49: 12.22 | H49: 0 | I49: 0.2788 | J49: 0.0045 | K49: 953.66 | L49: 22.24 | M49: 3677 | N49: 37
A50: ALH77005_6 | B50: 0.21 | C50: 1.5301 | D50: 0.0099 | E50: 0.1267 | F50: 0.0129 | G50: 32.54 | H50: 0 | I50: 0.1214 | J50: 0.002 | K50: 32.86 | L50: 0.25 | M50: 373 | N50: 3
A51: ALH77005_7 | B51: 0.48 | C51: 1.0538 | D51: 0.0068 | E51: 0.1104 | F51: 0.0129 | G51: 34.06 | H51: 0 | I51: 0.201 | J51: 0.0045 | K51: 177.18 | L51: 1.23 | M51: 1455 | N51: 9
A52: ALH77005_8 | B52: 2.56 | C52: 0.8328 | D52: 0.0099 | E52: 0.2657 | F52: 0.0129 | G52: 17.87 | H52: 0 | I52: 0.7853 | J52: 0.0045 | K52: 1319.26 | L52: 15.92 | M52: 4196 | N52: 21
A53: ALH77005_9 | B53: 0.15 | C53: 1.5531 | D53: 0.0135 | E53: 0.1922 | F53: 0.0129 | G53: 60.69 | H53: 0 | I53: 0.2139 | J53: 0.002 | K53: 73.93 | L53: 0.65 | M53: 752 | N53: 6
A54: ALH77005_10 | B54: 0.78 | C54: 0.7307 | D54: 0.0068 | E54: 0.2412 | F54: 0.0129 | G54: 28.73 | H54: 0 | I54: 0.6864 | J54: 0.0082 | K54: 534.4 | L54: 5.07 | M54: 2808 | N54: 15
A55: ALH77005_11 | B55: 0.65 | C55: 0.1993 | D55: 0.0068 | E55: 0.2657 | F55: 0.0129 | G55: 6.95 | H55: 0 | I55: 1.1522 | J55: 0.0082 | K55: 4299.29 | L55: 146.31 | M55: 6201 | N55: 60
A56: ALH77005_12 | B56: 1.6 | C56: 1.2426 | D56: 0.0084 | E56: 0.5696 | F56: 0.0056 | G56: 48.17 | H56: 0.02 | I56: 2.3632 | J56: 0.0069 | K56: 562.14 | L56: 3.99 | M56: 2880 | N56: 12
A57: ALH77005_13 | B57: 0.44 | C57: 0.3077 | D57: 0.0043 | E57: 0.0913 | F57: 0.0056 | G57: 11.14 | H57: 0.02 | I57: 0.297 | J57: 0.0069 | K57: 494.19 | L57: 7.04 | M57: 2697 | N57: 21
A58: ALH77005_14 | B58: 2.08 | C58: 0.4587 | D58: 0.0043 | E58: 0.1567 | F58: 0.0056 | G58: 14.21 | H58: 0.02 | I58: 0.3842 | J58: 0.0069 | K58: 1196.34 | L58: 12.09 | M58: 4038 | N58: 18
A59: ALH77005_15 | B59: 1.72 | C59: 0.3685 | D59: 0.0083 | E59: 0.357 | F59: 0.009 | G59: 12.97 | H59: 0.02 | I59: 1.1806 | J59: 0.0098 | K59: 4278.41 | L59: 97.04 | M59: 6192 | N59: 41
A60: ALH77005_16 | B60: 0.81 | C60: 1.224 | D60: 0.0083 | E60: 0.4184 | F60: 0.0056 | G60: 32.22 | H60: 0.02 | I60: 1.9115 | J60: 0.0069 | K60: 492.47 | L60: 3.42 | M60: 2692 | N60: 12
A61: ALH77005_17 | B61: 0.25 | C61: 0.0282 | D61: 0.0043 | E61: 0.0586 | F61: 0.0056 | G61: 2.41 | H61: 0.02 | I61: 0.2114 | J61: 0.0069 | K61: 7100.39 | L61: 1081.75 | M61: 7083 | N61: 270
A62: ALH77005_18 | B62: 0.28 | C62: 0.1163 | D62: 0.0043 | E62: 0.075 | F62: 0.0039 | G62: 6.7 | H62: 0.02 | I62: 0.2462 | J62: 0.0069 | K62: 2239.34 | L62: 82.72 | M62: 5077 | N62: 63
A63: ALH77005_19 | B63: 0.28 | C63: 0.6241 | D63: 0.0083 | E63: 0.1363 | F63: 0.0056 | G63: 14.12 | H63: 0.02 | I63: 0.2243 | J63: 0.0069 | K63: 523.79 | L63: 7.02 | M63: 2779 | N63: 20
A64: ALH77005_20 | B64: 0.28 | C64: 0.1543 | D64: 0.0043 | E64: 0.0422 | F64: 0.0039 | G64: 5.52 | H64: 0.02 | I64: 0.0785 | J64: 0.0057 | K64: 494.22 | L64: 13.87 | M64: 2697 | N64: 40
A65: ALH77005_21 | B65: 0.94 | C65: 0.2862 | D65: 0.0041 | E65: 0.1615 | F65: 0.0046 | G65: 11.24 | H65: 0.01 | I65: 0.469 | J65: 0.0089 | K65: 2245.74 | L65: 32.61 | M65: 5081 | N65: 26
A66: ALH77005_22 | B66: 0.81 | C66: 0.7271 | D66: 0.0041 | E66: 0.1778 | F66: 0.0046 | G66: 32.4 | H66: 0.01 | I66: 0.3834 | J66: 0.0089 | K66: 493.02 | L66: 3.02 | M66: 2694 | N66: 11
A67: ALH77005_23 | B67: 3.97 | C67: 0.3183 | D67: 0.0041 | E67: 0.9873 | F67: 0.0084 | G67: 12.64 | H67: 0.01 | I67: 4.3926 | J67: 0.0113 | K67: 13164.02 | L67: 171.4 | M67: 8180 | N67: 25
A68: ALH77005_24 | B68: 2.01 | C68: 0.4735 | D68: 0.0041 | E68: 0.4354 | F68: 0.0046 | G68: 15.56 | H68: 0.01 | I68: 1.9239 | J68: 0.0089 | K68: 2616.76 | L68: 23.24 | M68: 5342 | N68: 17
A69: ALH77005_25 | B69: 2.34 | C69: 0.2298 | D69: 0.0041 | E69: 0.5458 | F69: 0.0046 | G69: 9 | H69: 0.01 | I69: 2.9616 | J69: 0.0113 | K69: 7716.83 | L69: 139.2 | M69: 7230 | N69: 33
A70: ALH77005_26 | B70: 1.39 | C70: 0.3022 | D70: 0.0041 | E70: 0.1574 | F70: 0.0046 | G70: 11.96 | H70: 0.01 | I70: 0.4288 | J70: 0.0089 | K70: 2199.74 | L70: 30.44 | M70: 5046 | N70: 25
L74: Sample | M74: Age
L75: Number | M75: Million Years
B76: 380 | C76: =(#REF!-B76) ->  | E76: 1 | F76: 73 | G76: =(F76/78) -> 0.9358974359 | H76: =9000-(G76 *1000) -> 8064.102564 | L76: 1 | M76: 8064.102564
E77: 2 | F77: 141 | G77: 1.807692308 | H77: 7192.307692 | L77: 2 | M77: 7192.307692
E78: 3 | F78: 151 | G78: 1.935897436 | H78: 7064.102564 | L78: 3 | M78: 7064.102564
E79: 4 | F79: 166 | G79: 2.128205128 | H79: 6871.794872 | L79: 4 | M79: 6871.794872
E80: 5 | F80: 181 | G80: 2.320512821 | H80: 6679.487179 | L80: 5 | M80: 6679.487179
E81: 6 | F81: 201 | G81: 2.576923077 | H81: 6423.076923 | L81: 6 | M81: 6423.076923
E82: 7 | F82: 218 | G82: 2.794871795 | H82: 6205.128205 | L82: 7 | M82: 6205.128205
E83: 8 | F83: 220 | G83: 2.820512821 | H83: 6179.487179 | L83: 8 | M83: 6179.487179
E84: 9 | F84: 226 | G84: 2.897435897 | H84: 6102.564103 | L84: 9 | M84: 6102.564103
E85: 0 | F85: 285 | G85: 3.653846154 | H85: 5346.153846 | L85: 0 | M85: 5346.153846
E86: 11 | F86: 304 | G86: 3.897435897 | H86: 5102.564103 | L86: 11 | M86: 5102.564103
E87: 12 | F87: 304 | G87: 3.897435897 | H87: 5102.564103 | L87: 12 | M87: 5102.564103
E88: 13 | F88: 310 | G88: 3.974358974 | H88: 5025.641026 | L88: 13 | M88: 5025.641026
E89: 14 | F89: 339 | G89: 4.346153846 | H89: 4653.846154 | L89: 14 | M89: 4653.846154
K93: Meteorite | L93: Sample | M93: Million Years
K94: NWA 1950 | L94: Spot-21 | M94: 6920
L95: Spot-22 | M95: 6729
L96: Spot-23 | M96: 4643
K98: ALH-77005 | L98: Spot-1 | M98: 6464
L99: Spot-2 | M99: 6126
L100: Spot-11 | M100: 6201
L101: Spot-15 | M101: 6192
L102: Spot-17 | M102: 7083
L103: Spot-18 | M103: 5077
L104: Spot-21 | M104: 5081
L105: Spot-23 | M105: 8180
L106: Spot-24 | M106: 5342
L107: Spot-25 | M107: 7230
L108: Spot-26 | M108: 5046

Sheet Very_Old_10
A3: Sample
A4: Name | I4: Billion
A5: Diamond Free | I5: Years
A6: AHM-C5 | B6: C5 | C6: 0.0464 | D6: 0.635 | E6: 0.353 | F6: 0.1427 | G6: 0.0005 | H6: 10.9 | I6: -13.1
A7: AHM-C6 | B7: C6 | C7: 0.269 | D7: 0.3181 | E7: 0.0009 | F7: 147.2
A8: AHM-C7 | B8: C7 | C8: 0.252 | D8: 1.2824 | E8: 0.0016 | F8: 896.4
A9: Diamond Bearing-
A10: AHM-K1/1 | B10: K1/1 | C10: 0.58 | D10: 0.539 | E10: 5.531 | F10: 0.6524 | G10: 0.0019 | H10: 406.9 | I10: 5.86
A11: AHM-K1/2 | B11: K1/2 | C11: 0.586 | D11: 0.6054 | E11: 0.0114 | F11: 370.4
A12: AHM-K3 | B12: K3 | C12: 0.916 | D12: 0.348 | E12: 14.06 | F12: 0.9449 | G12: 0.0024 | H12: 634.2 | I12: 3.49
A13: AHM-K4/1 | B13: K4/1 | C13: 0.62
A14: AHM-K4/2 | B14: K4/2 | C14: 0.624 | D14: 0.356 | E14: 9.127 | F14: 0.7659 | G14: 0.0031 | H14: 495.1 | I14: 4.24
A15: AHM-K5/1 | B15: K5/1 | C15: 1.107
A16: AHM-K5/2 | B16: K5/2 | C16: 1.097 | D16: 0.554 | E16: 10.53 | F16: 0.9096 | G16: 0.0099 | H16: 606.8 | I16: 4.47
A17: AHM-K5/3 | B17: K5/3 | C17: 0.356 | D17: 1.3744 | E17: 0.0034 | F17: 967.9
A18: AHM-K6/1 | B18: K6/1 | C18: 0.341 | D18: 0.381 | E18: 4.509 | F18: 0.4926 | G18: 0.0003 | H18: 282.8 | I18: 5.12
A19: AHM-K6/2 | B19: K6/2 | C19: 0.331 | D19: 0.348 | E19: 4.818 | F19: 0.5219 | G19: 0.0007 | H19: 305.5 | I19: 5.14
A20: AHM-K7 | B20: K7 | C20: 0.647 | D20: 0.319 | E20: 10.82 | F20: 0.9461 | G20: 0.0007 | H20: 635.1 | I20: 4.54
A21: AHM-K8/1 | B21: K8/1 | C21: 1.175 | D21: 0.348 | E21: 18.31 | F21: 1.0854 | G21: 0.0017 | H21: 743.3 | I21: 3.13
A22: AHM-K8/2 | B22: K8/2 | C22: 1.345 | D22: 0.257 | E22: 26.21 | F22: 1.4877 | G22: 0.0053 | H22: 1056 | I22: 3.08
A23: AHM-K9 | B23: K9 | C23: 0.518 | D23: 0.348 | E23: 7.65 | F23: 0.6413 | G23: 0.001 | H23: 398.3 | I23: 4.11
A24: AHM-K10 | B24: K10 | C24: 1.039 | D24: 0.421 | E24: 13.12 | F24: 0.915 | G24: 0.0011 | H24: 610.9 | I24: 3.61
A25: AHM-K11 | B25: K11 | C25: 0.319 | D25: 0.363 | E25: 4.396 | F25: 0.4321 | G25: 0.0008 | H25: 235.8 | I25: 4.42
A26: AHM-K12 | B26: K12 | C26: 0.297 | D26: 0.68 | E26: 0.0005 | F26: 428.3
A27: AHM-K13 | B27: K13 | C27: 0.0347 | D27: 0.3 | E27: 0.565 | F27: 0.1795 | G27: 0.0031 | H27: 39.5 | I27: 18.5
A28: AHM-K14 | B28: K14 | C28: 0.718 | D28: 0.432 | E28: 8.619 | F28: 0.7064 | G28: 0.0058 | H28: 448.9 | I28: 4.09
A29: AHM-K15 | B29: K15 | C29: 0.0401 | D29: 0.36 | E29: 0.538 | F29: 0.1579 | G29: 0.0007 | H29: 22.7 | I29: 13.8
A33: Sample Name | B33: Billion Years
A34: AHM-C5 | B34: -13.1 | D34: -13.1
A35: AHM-K1/1 | B35: 5.86 | D35: 4.09
A36: AHM-K4/2 | B36: 4.24 | D36: 4.24
A37: AHM-K5/2 | B37: 4.47 | D37: 4.47
A38: AHM-K6/1 | B38: 5.12 | D38: 5.12
A39: AHM-K6/2 | B39: 5.14 | D39: 5.14
A40: AHM-K13 | B40: 18.5 | D40: 5.86
A41: AHM-K14 | B41: 4.09 | D41: 13.8
A42: AHM-K15 | B42: 13.8 | D42: 18.5

Sheet Very_Old_11
B1: Sample | C1: MA | D1: RD
B2: Name | C2: Billion Years | D2: Billion Years
A3: AL-40 | B3: AL-40 | D3: 0.08
A4: AL-42 | B4: AL-42 | C4: Less Than Zero | D4: 0.46
A5: AL-46 | B5: AL-46 | D5: Less Than Zero
A6: AL-47 | B6: AL-47 | D6: 0.5
A7: AL-70 | B7: AL-70
A8: AL-75 | B8: AL-75 | C8: Less Than Zero | D8: 0.43
A9: AL-76 | B9: AL-76 | C9: Less Than Zero | D9: 0.1
A10: AL-86 | B10: AL-86 | C10: Less Than Zero | D10: 0.52
A11: AL-88 | B11: AL-88 | C11: 0.32 | D11: Less Than Zero
A12: AL-41 | B12: AL-41 | C12: Less Than Zero | D12: 0.48
A13: AL-49 | B13: AL-49 | D13: 1.11
A14: AL-52 | B14: AL-52 | C14: Less Than Zero | D14: 0.22
A15: AL-53 | B15: AL-53 | D15: 0.52
A16: AL-54 | B16: AL-54 | C16: 0.55 | D16: 0.35
A17: AL-56 | B17: AL-56 | C17: 2.4 | D17: 0.25
A18: XLG-30N | B18: XLG-30N | C18: 4.5 | D18: 0.63
A19: XLG-29A | B19: XLG-29A | C19: Less Than Zero | D19: 0.92
A20: XLG-12A | B20: XLG-12A | C20: Less Than Zero | D20: Less Than Zero
A21: XLG-25A | B21: XLG-25A | C21: 0.54 | D21: Less Than Zero
A23: RRX-19 | B23: RRX-19 | C23: 0.68 | D23: 0.64
A24: RRX-21 | B24: RRX-21 | C24: 0.61 | D24: 0.51
A25: KLX-47 | B25: KLX-47 | C25: Less Than Zero | D25: 0.33
A27: KRX-11 | B27: KRX-11 | C27: 0.84 | D27: 0.75
A29: BTX-26 | B29: BTX-26 | C29: Less Than Zero | D29: Less Than Zero
B33: Sample | C33: MA | D33: RD
B34: Name | C34: Billion Years | D34: Billion Years
B35: AL-42 | C35: Less Than Zero | D35: 0.46
B36: AL-46 | D36: Less Than Zero
B37: AL-75 | C37: Less Than Zero | D37: 0.43
B38: AL-76 | C38: Less Than Zero | D38: 0.1
B39: AL-86 | C39: Less Than Zero | D39: 0.52
B40: AL-88 | C40: 0.32 | D40: Less Than Zero
B41: AL-41 | C41: Less Than Zero | D41: 0.48
B42: AL-52 | C42: Less Than Zero | D42: 0.22
B43: XLG-29A | C43: Less Than Zero | D43: 0.92
B44: XLG-12A | C44: Less Than Zero | D44: Less Than Zero
B45: XLG-25A | C45: 0.54 | D45: Less Than Zero
B46: KLX-47 | C46: Less Than Zero | D46: 0.33
B47: BTX-26 | C47: Less Than Zero | D47: Less Than Zero

Sheet Very_Old_12
A1: Table 1
A2: 4931
A3: 4679
A4: 6559
A5: 4799
A6: 5262
A7: 9153
A8: 6137
A10: Table 2
A11: 5041
A12: 4909
A13: 4909

Sheet Very_Old_13
C3: Table 3
C4: 5800
C5: 5800

Sheet Very_Old_15
A1: Space Probe/Sample | B1: 207Pb | C1: 206Pb | D1: 207Pb | E1: 208Pb | J1: Pb-207/206 | K1: Age
A2: Luna 20 | B2: 206Pb | C2: 238U | D2: 235U | E2: 232Th | J2: Ratio | K2: Ma
A3: 22001, 1 A-2 | B3: 4.94 | C3: 5.83 | D3: 5.19 | E3: 5.87 | J3: 0.8166 | K3: =[1]!AgePb76($B$27) -> 
B4: 5 | C4: 5.2 | D4: 5.06 | E4: 5.01 | J4: 0.8196 | K4: =[1]!AgePb76($B$28) -> 
B5: 4.92 | C5: 6.09 | D5: 5.24 | E5: 6.24 | J5: 0.8189 | K5: =[1]!AgePb76($B$29) -> 
A6: 22001, 1A-2 | B6: 4.96 | C6: 5.78 | D6: 5.19 | E6: 6.08 | J6: 0.819 | K6: =[1]!AgePb76($B$30) -> 
B7: 5.01 | C7: 5.25 | D7: 5.08 | E7: 5.3 | J7: 0.7804 | K7: =[1]!AgePb76($B$31) -> 
B8: 4.95 | C8: 5.83 | D8: 5.2 | E8: 6.14 | J8: 0.78 | K8: =[1]!AgePb76($B$32) -> 
A9: 67481, 26 | B9: 4.92 | C9: 5.49 | D9: 5.08 | E9: 5.8 | J9: 0.7883 | K9: =[1]!AgePb76($B$33) -> 
B10: 4.94 | C10: 5.29 | D10: 5.04 | E10: 5.52 | J10: 0.7886 | K10: =[1]!AgePb76($B$34) -> 
B11: 4.92 | C11: 5.51 | D11: 5.09 | E11: 5.84 | J11: 0.8006 | K11: =[1]!AgePb76($B$35) -> 
A12: 64421, 29 | B12: 4.91 | C12: 5.41 | D12: 5.05 | E12: 5.47 | J12: 0.8008 | K12: =[1]!AgePb76($B$36) -> 
B13: 4.94 | C13: 5 | D13: 4.96 | E13: 4.91 | J13: 0.8417 | K13: =[1]!AgePb76($B$37) -> 
B14: 4.9 | C14: 5.43 | D14: 5.06 | E14: 5.5 | J14: 0.8417 | K14: =[1]!AgePb76($B$38) -> 
A15: 60501, 31 | B15: 4.98 | C15: 5.35 | D15: 5.08 | E15: 5.26 | J15: 0.7989 | K15: =[1]!AgePb76($B$39) -> 
B16: 4.99 | C16: 5.23 | D16: 5.06 | E16: 5.1 | J16: 0.8015 | K16: =[1]!AgePb76($B$40) -> 
B17: 4.97 | C17: 5.36 | D17: 5.09 | E17: 5.28
A18: 68501, 52 | B18: 5.05 | C18: 5.61 | D18: 5.21 | E18: 5.55
B19: 5.06 | C19: 5.48 | D19: 5.18 | E19: 5.37
B20: 5.05 | C20: 5.62 | D20: 5.21 | E20: 5.56
A21: 60025, 65 | B21: 4.64 | C21: 6.64 | D21: 5.18 | E21: 5.64
B22: 4.75 | C22: 3.75 | D22: 4.42 | E22: 2.51
B23: 4.62 | C23: 7.83 | D23: 5.45 | E23: 7.21
B26: Pb-207/206 | C26: Age
B27: 0.8166 | C27: =[1]!AgePb76($B$27) -> 
B28: 0.8196 | C28: =[1]!AgePb76($B$28) -> 
B29: 0.8189 | C29: =[1]!AgePb76($B$29) -> 
B30: 0.819 | C30: =[1]!AgePb76($B$30) -> 
B31: 0.7804 | C31: =[1]!AgePb76($B$31) -> 
B32: 0.78 | C32: =[1]!AgePb76($B$32) -> 
B33: 0.7883 | C33: =[1]!AgePb76($B$33) -> 
B34: 0.7886 | C34: =[1]!AgePb76($B$34) -> 
B35: 0.8006 | C35: =[1]!AgePb76($B$35) -> 
B36: 0.8008 | C36: =[1]!AgePb76($B$36) -> 
B37: 0.8417 | C37: =[1]!AgePb76($B$37) -> 
B38: 0.8417 | C38: =[1]!AgePb76($B$38) -> 
B39: 0.7989 | C39: =[1]!AgePb76($B$39) -> 
B40: 0.8015 | C40: =[1]!AgePb76($B$40) -> 

Sheet Very_Old_16
A1: Sample Number | B1: Age, Million Years | D1: -45000000000 | F1: 5105
A2: B40-A, Third Run | B2: -45000000000 | D2: -310000 | F2: 5117
B3: -310000 | D3: -56112 | F3: 5117
A4: B40-E | B4: -56112 | D4: 386 | F4: 5228
B5: 386 | D5: 2663 | F5: 5228
A6: 17B | B6: 6555 | D6: 4864 | F6: 6479
B7: 6296 | D7: 4890 | F7: 6544
B8: 4969 | D8: 4969 | F8: 6555
B9: 5117 | D9: 5105 | F9: 6560
B10: 6164 | D10: 5117 | F10: 6848
B11: 5228 | D11: 5117 | F11: 6848
A12: KT-17B | B12: 6848 | D12: 5228 | F12: 6904
B13: 6479 | D13: 5228 | F13: 7810
B14: 5117 | D14: 5597
B15: 6164 | D15: 5731
B16: 5228 | D16: 6164
A17: KT-17B, SECOND RUN | B17: 6848 | D17: 6164
B18: 6479 | D18: 6204
B19: 4684 | D19: 6296
B20: 5731 | D20: 6479
A21: KT-17B, Plagioclase Concentrate | B21: 6204 | D21: 6479
B22: 6904 | D22: 6544
B23: 6560 | D23: 6555
B24: 6544 | D24: 6560
B25: 5105 | D25: 6848
A26: B56-A, First Run | B26: 7810 | D26: 6848
B27: 4864 | D27: 6904
B28: 4890 | D28: 7810
A29: B56-A, Second Run | B29: 5597

Sheet Diamonds_01
A1: Sample | B1: 206Pb/204Pb | C1: 207Pb/204Pb | D1: 207Pb/206Pb | E1: 207Pb/206Pb | G1: Sample | H1: 206Pb/204Pb | I1: 207Pb/204Pb | J1: 207Pb/206Pb | K1: 207Pb/206Pb
A2: Number | B2: Ratio | C2: Ratio | D2: Ratio | E2: Age | G2: Number | H2: Ratio | I2: Ratio | J2: Ratio | K2: Age
A3: OG-1-a | B3: 30.299 | C3: 18.807 | D3: =(C3/B3) -> 0.6207135549 | E3: =[1]!AgePb76($D$3) -> 4557.249482 | G3: OG-1-x | H3: 31.452 | I3: 19.025 | J3: =(I3/H3) -> 0.6048899911 | K3: =[1]!AgePb76($D$3) -> 4557.249482
A4: OG-1-b | B4: 30.962 | C4: 19.038 | D4: 0.6148827595 | E4: =[1]!AgePb76($D$4) -> 4543.566117 | G4: OG-1-y | H4: 30.926 | I4: 18.927 | J4: 0.6120093126 | K4: =[1]!AgePb76($D$4) -> 4543.566117
A5: OG-1-c | B5: 30.594 | C5: 18.953 | D5: 0.6195005557 | E5: =[1]!AgePb76($D$5) -> 4554.414288 | G5: OG-1-z | H5: 30.313 | I5: 18.925 | J5: 0.6243195989 | K5: =[1]!AgePb76($D$5) -> 4554.414288
A6: OG-1-d | B6: 32.972 | C6: 19.355 | D6: 0.5870132233 | E6: =[1]!AgePb76($D$6) -> 4476.178128 | G6: OG-1-aa | H6: 31.954 | I6: 19.204 | J6: 0.6009889216 | K6: =[1]!AgePb76($D$6) -> 4476.178128
A7: OG-1-e | B7: 29.132 | C7: 18.57 | D7: 0.6374433613 | E7: =[1]!AgePb76($D$7) -> 4595.757054 | G7: OG-1-1a | H7: 30.33 | I7: 18.942 | J7: 0.6245301682 | K7: =[1]!AgePb76($D$7) -> 4595.757054
A8: OG-1-f | B8: 30.306 | C8: 18.847 | D8: 0.6218900548 | E8: =[1]!AgePb76($D$8) -> 4559.993686 | G8: OG-1-1b | H8: 30.322 | I8: 18.939 | J8: 0.6245960029 | K8: =[1]!AgePb76($D$8) -> 4559.993686
A9: OG-1-g | B9: 30.262 | C9: 18.901 | D9: 0.6245786795 | E9: =[1]!AgePb76($D$9) -> 4566.244082 | G9: OG-1-2a | H9: 30.884 | I9: 18.942 | J9: 0.6133272892 | K9: =[1]!AgePb76($D$9) -> 4566.244082
A10: OG-1-h | B10: 32.025 | C10: 19.097 | D10: 0.5963153786 | E10: =[1]!AgePb76($D$10) -> 4499.046145 | G10: OG-1-2b | H10: 30.894 | I10: 18.947 | J10: 0.6132906066 | K10: =[1]!AgePb76($D$10) -> 4499.046145
A11: OG-1-i | B11: 32.511 | C11: 19.328 | D11: 0.5945064747 | E11: =[1]!AgePb76($D$11) -> 4494.629401 | G11: OG-1-3a | H11: 31.054 | I11: 19.004 | J11: 0.6119662523 | K11: =[1]!AgePb76($D$11) -> 4494.629401
A12: OG-1-j | B12: 32.227 | C12: 19.317 | D12: 0.5994042263 | E12: =[1]!AgePb76($D$12) -> 4506.55489 | G12: OG-1-3b | H12: 31.104 | I12: 19.059 | J12: 0.6127507716 | K12: =[1]!AgePb76($D$12) -> 4506.55489
A13: OG-1-k | B13: 31.946 | C13: 19.251 | D13: 0.6026106555 | E13: =[1]!AgePb76($D$13) -> 4514.305591 | G13: OG-1-7a | H13: 32.344 | I13: 19.109 | J13: 0.5908050952 | K13: =[1]!AgePb76($D$13) -> 4514.305591
A14: OG-1-l | B14: 31.828 | C14: 19.23 | D14: 0.6041849943 | E14: =[1]!AgePb76($D$14) -> 4518.094931 | G14: OG-1-7b | H14: 32.402 | I14: 19.146 | J14: 0.5908894513 | K14: =[1]!AgePb76($D$14) -> 4518.094931
A15: OG-1-m | B15: 33.675 | C15: 19.47 | D15: 0.5781737194 | E15: =[1]!AgePb76($D$15) -> 4454.083264 | G15: OG-1-8a | H15: 31.804 | I15: 19.066 | J15: 0.5994843416 | K15: =[1]!AgePb76($D$15) -> 4454.083264
A16: OG-1-n | B16: 30.181 | C16: 18.897 | D16: 0.6261223949 | E16: =[1]!AgePb76($D$16) -> 4569.819805 | G16: OG-1-8b | H16: 31.826 | I16: 19.08 | J16: 0.5995098347 | K16: =[1]!AgePb76($D$16) -> 4569.819805
A17: OG-1-o | B17: 32.909 | C17: 19.333 | D17: 0.5874684737 | E17: =[1]!AgePb76($D$17) -> 4477.306341 | G17: OG-1-9a | H17: 30.327 | I17: 18.846 | J17: 0.6214264517 | K17: =[1]!AgePb76($D$17) -> 4477.306341
A18: OG-1-p | B18: 31.703 | C18: 19.146 | D18: 0.6039176103 | E18: =[1]!AgePb76($D$18) -> 4517.452103 | G18: OG-1-9b | H18: 30.323 | I18: 18.842 | J18: 0.6213765129 | K18: =[1]!AgePb76($D$18) -> 4517.452103
A19: OG-1-q | B19: 31.092 | C19: 18.994 | D19: 0.6108966937 | E19: =[1]!AgePb76($D$19) -> 4534.131416 | G19: OG-1-12a | H19: 34.373 | I19: 19.532 | J19: 0.5682366974 | K19: =[1]!AgePb76($D$19) -> 4534.131416
A20: OG-1-r | B20: 30.458 | C20: 18.977 | D20: 0.6230546983 | E20: =[1]!AgePb76($D$20) -> 4562.704752 | G20: OG-1-12b | H20: 34.31 | I20: 19.48 | J20: 0.5677645001 | K20: =[1]!AgePb76($D$20) -> 4562.704752
A21: OG-1-s | B21: 31.98 | C21: 19.209 | D21: 0.6006566604 | E21: =[1]!AgePb76($D$21) -> 4509.587613 | G21: OG-1-13a | H21: 32.26 | I21: 19.091 | J21: 0.5917854929 | K21: =[1]!AgePb76($D$21) -> 4509.587613
A22: OG-1-t | B22: 31.02 | C22: 18.967 | D22: 0.6114442295 | E22: =[1]!AgePb76($D$22) -> 4535.431301 | G22: OG-1-13b | H22: 32.272 | I22: 19.102 | J22: 0.5919062965 | K22: =[1]!AgePb76($D$22) -> 4535.431301
A23: OG-1-u | B23: 33.537 | C23: 19.449 | D23: 0.5799266482 | E23: =[1]!AgePb76($D$23) -> 4458.493587 | G23: OG-1-14a | H23: 35.511 | I23: 19.858 | J23: 0.5592070063 | K23: =[1]!AgePb76($D$23) -> 4458.493587
A24: OG-1-v | B24: 29.512 | C24: 18.697 | D24: 0.6335388994 | E24: =[1]!AgePb76($D$24) -> 4586.867839 | G24: OG-1-14b | H24: 35.552 | I24: 19.877 | J24: 0.5590965347 | K24: =[1]!AgePb76($D$24) -> 4586.867839
A25: OG | B25: 32.311 | C25: 19.12 | D25: 0.59174894 | E25: =[1]!AgePb76($D$25) -> 4487.868528 | K25: =MAX(K3:K24) -> 4595.757054
E26: =MAX(E3:E25) -> 4595.757054
A29: Sample | B29: 207Pb/206Pb | C29: Sample | D29: 207Pb/206Pb
A30: Number | B30: Age | C30: Number | D30: Age
A31: OG-1-a | B31: 4557.249482 | C31: OG-1-x | D31: 4557.249482
A32: OG-1-b | B32: 4543.566117 | C32: OG-1-y | D32: 4543.566117
A33: OG-1-c | B33: 4554.414288 | C33: OG-1-z | D33: 4554.414288
A34: OG-1-d | B34: 4476.178128 | C34: OG-1-aa | D34: 4476.178128
A35: OG-1-e | B35: 4595.757054 | C35: OG-1-1a | D35: 4595.757054
A36: OG-1-f | B36: 4559.993686 | C36: OG-1-1b | D36: 4559.993686
A37: OG-1-g | B37: 4566.244082 | C37: OG-1-2a | D37: 4566.244082
A38: OG-1-h | B38: 4499.046145 | C38: OG-1-2b | D38: 4499.046145
A39: OG-1-i | B39: 4494.629401 | C39: OG-1-3a | D39: 4494.629401
A40: OG-1-j | B40: 4506.55489 | C40: OG-1-3b | D40: 4506.55489
A41: OG-1-k | B41: 4514.305591 | C41: OG-1-7a | D41: 4514.305591
A42: OG-1-l | B42: 4518.094931 | C42: OG-1-7b | D42: 4518.094931
A43: OG-1-m | B43: 4454.083264 | C43: OG-1-8a | D43: 4454.083264
A44: OG-1-n | B44: 4569.819805 | C44: OG-1-8b | D44: 4569.819805
A45: OG-1-o | B45: 4477.306341 | C45: OG-1-9a | D45: 4477.306341
A46: OG-1-p | B46: 4517.452103 | C46: OG-1-9b | D46: 4517.452103
A47: OG-1-q | B47: 4534.131416 | C47: OG-1-12a | D47: 4534.131416
A48: OG-1-r | B48: 4562.704752 | C48: OG-1-12b | D48: 4562.704752
A49: OG-1-s | B49: 4509.587613 | C49: OG-1-13a | D49: 4509.587613
A50: OG-1-t | B50: 4535.431301 | C50: OG-1-13b | D50: 4535.431301
A51: OG-1-u | B51: 4458.493587 | C51: OG-1-14a | D51: 4458.493587
A52: OG-1-v | B52: 4586.867839 | C52: OG-1-14b | D52: 4586.867839
A53: OG | B53: 4487.868528

Sheet Diamonds_02
C4: 5870 | D4: 24390
C5: 2920 | D5: 11740

Sheet Diamonds_03
A1: Sample | B1: 207Pb/206Pb | C1: 207Pb/206Pb | D1: 206Pb/238U | E1: 206Pb/238U | F1: 207Pb/235U | G1: 207Pb/235U
A2: Number | B2: Ratio | C2: Age | D2: Ratio | E2: Age | F2: Ratio | G2: Age
A3: 1a | B3: 0.1399 | C3: =[1]!AgePb76(B3) -> 2225.97094 | D3: 0.4107 | E3: =[1]!AgePb6U8(D3) -> 2218.121097 | F3: 7.925 | G3: =[1]!AgePb8Th2(F3) -> 44241.66403
A4: 1b | B4: 0.1392 | C4: =[1]!AgePb76(B4) -> 2217.279215 | D4: 0.3683 | E4: =[1]!AgePb6U8(D4) -> 2021.396251 | F4: 7.067 | G4: =[1]!AgePb8Th2(F4) -> 42198.71988
A5: 1d | B5: 0.1386 | C5: =[1]!AgePb76(B5) -> 2209.787722 | D5: 0.3234 | E5: =[1]!AgePb6U8(D5) -> 1806.312217 | F5: 6.178 | G5: =[1]!AgePb8Th2(F5) -> 39838.72244
A6: 1e | B6: 0.136 | C6: =[1]!AgePb76(B6) -> 2176.872838 | D6: 0.3299 | E6: =[1]!AgePb6U8(D6) -> 1837.896867 | F6: 6.186 | G6: =[1]!AgePb8Th2(F6) -> 39861.23676
A7: 3a | B7: 0.1418 | C7: =[1]!AgePb76(B7) -> 2249.304851 | D7: 0.3294 | E7: =[1]!AgePb6U8(D7) -> 1835.472765 | F7: 6.439 | G7: =[1]!AgePb8Th2(F7) -> 40560.61508
A8: 3b | B8: 0.1407 | C8: =[1]!AgePb76(B8) -> 2235.841313 | D8: 0.1459 | E8: =[1]!AgePb6U8(D8) -> 877.9394324 | F8: 2.83 | G8: =[1]!AgePb8Th2(F8) -> 27142.29011
A9: 4a | B9: 0.1383 | C9: =[1]!AgePb76(B9) -> 2206.027503 | D9: 0.2852 | E9: =[1]!AgePb6U8(D9) -> 1617.497813 | F9: 5.438 | G9: =[1]!AgePb8Th2(F9) -> 37639.57419
A10: 4c | B10: 0.1343 | C10: =[1]!AgePb76(B10) -> 2154.943586 | D10: 0.2285 | E10: =[1]!AgePb6U8(D10) -> 1326.632799 | F10: 4.232 | G10: =[1]!AgePb8Th2(F10) -> 33447.06648
A11: 4d | B11: 0.1365 | C11: =[1]!AgePb76(B11) -> 2183.260499 | D11: 0.2308 | E11: =[1]!AgePb6U8(D11) -> 1338.690504 | F11: 4.343 | G11: =[1]!AgePb8Th2(F11) -> 33871.39551
A12: 5a | B12: 0.1412 | C12: =[1]!AgePb76(B12) -> 2241.976528 | D12: 0.3172 | E12: =[1]!AgePb6U8(D12) -> 1776.040429 | F12: 6.176 | G12: =[1]!AgePb8Th2(F12) -> 39833.08994
A18: Sample | B18: 207Pb/206Pb | C18: 206Pb/238U | D18: 207Pb/235U
A19: Number | B19: Age | C19: Age | D19: Age
A20: 1a | B20: 2225.97094 | C20: 2218.121097 | D20: 44241.66403
A21: 1b | B21: 2217.279215 | C21: 2021.396251 | D21: 42198.71988
A22: 1d | B22: 2209.787722 | C22: 1806.312217 | D22: 39838.72244
A23: 1e | B23: 2176.872838 | C23: 1837.896867 | D23: 39861.23676
A24: 3a | B24: 2249.304851 | C24: 1835.472765 | D24: 40560.61508
A25: 3b | B25: 2235.841313 | C25: 877.9394324 | D25: 27142.29011
A26: 4a | B26: 2206.027503 | C26: 1617.497813 | D26: 37639.57419
A27: 4c | B27: 2154.943586 | C27: 1326.632799 | D27: 33447.06648
A28: 4d | B28: 2183.260499 | C28: 1338.690504 | D28: 33871.39551
A29: 5a | B29: 2241.976528 | C29: 1776.040429 | D29: 39833.08994

Sheet Diamonds_04
A1: Sample | B1: 207Pb/206Pb | C1: 207Pb/206Pb | D1: 206Pb/238U | E1: 206Pb/238U | F1: 207Pb/235U | G1: 207Pb/235U
A2: Number | B2: Ratio | C2: Age | D2: Ratio | E2: Age | F2: Ratio | G2: Age
B3: 0.18186 | C3: =[1]!AgePb76(B3) -> 2669.905931 | D3: 0.49231 | E3: =[1]!AgePb6U8(D3) -> 2580.662401 | F3: 12.344 | G3: =[1]!AgePb7U5(F3) -> 2630.925365
B4: 0.17408 | C4: =[1]!AgePb76(B4) -> 2597.261492 | D4: 0.4818 | E4: =[1]!AgePb6U8(D4) -> 2535.101144 | F4: 11.564 | G4: =[1]!AgePb7U5(F4) -> 2569.76756
B5: 0.17711 | C5: =[1]!AgePb76(B5) -> 2625.992725 | D5: 0.48401 | E5: =[1]!AgePb6U8(D5) -> 2544.708353 | F5: 11.82 | G5: =[1]!AgePb7U5(F5) -> 2590.24872
B6: 0.17344 | C6: =[1]!AgePb76(B6) -> 2591.118585 | D6: 0.47107 | E6: =[1]!AgePb6U8(D6) -> 2488.251585 | F6: 11.265 | G6: =[1]!AgePb7U5(F6) -> 2545.311142
B7: 0.16963 | C7: =[1]!AgePb76(B7) -> 2553.995343 | D7: 0.46371 | E7: =[1]!AgePb6U8(D7) -> 2455.918185 | F7: 10.846 | G7: =[1]!AgePb7U5(F7) -> 2510.017016
B8: 0.20572 | C8: =[1]!AgePb76(B8) -> 2872.124646 | D8: 0.50726 | E8: =[1]!AgePb6U8(D8) -> 2644.921405 | F8: 14.388 | G8: =[1]!AgePb7U5(F8) -> 2775.638914
B9: 0.16825 | C9: =[1]!AgePb76(B9) -> 2540.309131 | D9: 0.45983 | E9: =[1]!AgePb6U8(D9) -> 2438.807353 | F9: 10.667 | G9: =[1]!AgePb7U5(F9) -> 2494.556881
B10: 0.16929 | C10: =[1]!AgePb76(B10) -> 2550.635446 | D10: 0.45983 | E10: =[1]!AgePb6U8(D10) -> 2438.807353 | F10: 10.733 | G10: =[1]!AgePb7U5(F10) -> 2500.284698
B11: 0.16489 | C11: =[1]!AgePb76(B11) -> 2506.431767 | D11: 0.45284 | E11: =[1]!AgePb6U8(D11) -> 2407.866311 | F11: 10.295 | G11: =[1]!AgePb7U5(F11) -> 2461.654211

Sheet PlotDat2 (hidden)
A1: Source sheet | B1: Plot_08 | C1: 1.9486 | D1: 0.0014 | E1: 0.2512930425 | F1: 0 | G1: 0.3361 | H1: 0.0003
A2: Plot name | B2: PbPlot2 | C2: 2.2285 | D2: 0.0019 | E2: 4.5 | F2: 0.006018365037 | G2: 0.3811 | H2: 0.0003636134502
A3: Plot Type | B3: 9 | C3: 3.54 | D3: 0.0027 | G3: 0.4261 | H3: 0.0004405298128
A4: 1st free col | B4: 9 | C4: 3.5997 | D4: 0.0041 | G4: 0.4711 | H4: 0.0005258604352
A5: Sigma Level | B5: 1 | C5: 2.8624 | D5: 0.0085 | G5: 0.5161 | H5: 0.0006147166645
A6: Absolute Errs | B6: TRUE | C6: 0.3361 | D6: 0.0003 | G6: 0.5611 | H6: 0.0007022098482
A7: Symbol Type | B7: 12 | C7: 1.2217 | D7: 0.0009 | G7: 0.6061 | H7: 0.0007834513335
A8: Inverse Plot | B8: TRUE | C8: IsoLine | D8: IsoLine | G8: 0.6511 | H8: 0.0008535524677
A9: Color Plot | B9: TRUE | G9: 0.6961 | H9: 0.0009076245983
A10: 3D plot | B10: FALSE | G10: 0.7411 | H10: 0.0009407790724
A11: Linear | B11: FALSE | G11: 0.7861 | H11: 0.0009481272374
A12: Data Range | B12: K3:L9 | G12: 0.8311 | H12: 0.0009247804407
A13: Filled Symbols | B13: TRUE | G13: 0.8761 | H13: 0.0008658500294
A14: ConcAge | B14: FALSE | G14: 0.9211 | H14: 0.000766447351
A15: ConcSwap | B15: FALSE | G15: 0.9661 | H15: 0.0006216837528
A16: 1st Symbol-row | B16: 1 | G16: 1.0111 | H16: 0.000426670582
G17: 1.0561 | H17: 0.000176519186
G18: 1.1011 | H18: -0.0001336590879
G19: 1.1461 | H19: -0.0005087528925
G20: 1.1911 | H20: -0.0009536508802
G21: 1.2217 | H21: 0.0009
G22: 1.2667 | H22: 0.000969473368
G23: 1.3117 | H23: 0.001030464599
G24: 1.3567 | H24: 0.001083581093
G25: 1.4017 | H25: 0.001129430248
G26: 1.4467 | H26: 0.001168619464
G27: 1.4917 | H27: 0.001201756139
G28: 1.5367 | H28: 0.001229447672
G29: 1.5817 | H29: 0.001252301463
G30: 1.6267 | H30: 0.00127092491
G31: 1.6717 | H31: 0.001285925413
G32: 1.7167 | H32: 0.00129791037
G33: 1.7617 | H33: 0.001307487181
G34: 1.8067 | H34: 0.001315263244
G35: 1.8517 | H35: 0.001321845959
G36: 1.8967 | H36: 0.001327842724
G37: 1.9417 | H37: 0.001333860939
G38: 1.9486 | H38: 0.0014
G39: 1.9936 | H39: 0.002570434632
G40: 2.0386 | H40: 0.001557878644
G41: 2.0836 | H41: -0.008222549639
G42: 2.1286 | H42: -0.03335573189
G43: 2.1736 | H43: -0.08042654979
G44: 2.2186 | H44: -0.156019885
G45: 2.2285 | H45: 0.0019
G46: 2.2735 | H46: 0.002084529044
G47: 2.3185 | H47: 0.002425529188
G48: 2.3635 | H48: 0.002940027882
G49: 2.4085 | H49: 0.00364505258
G50: 2.4535 | H50: 0.004557630733
G51: 2.4985 | H51: 0.005694789793
G52: 2.5435 | H52: 0.007073557211
G53: 2.5885 | H53: 0.008710960441
G54: 2.6335 | H54: 0.01062402693
G55: 2.6785 | H55: 0.01282978414
G56: 2.7235 | H56: 0.01534525951
G57: 2.7685 | H57: 0.0181874805
G58: 2.8135 | H58: 0.02137347456
G59: 2.8585 | H59: 0.02492026915
G60: 2.8624 | H60: 0.0085
G61: 2.9074 | H61: 0.008610008703
G62: 2.9524 | H62: 0.008714337815
G63: 2.9974 | H63: 0.00881275939
G64: 3.0424 | H64: 0.00890504548
G65: 3.0874 | H65: 0.008990968138
G66: 3.1324 | H66: 0.009070299418
G67: 3.1774 | H67: 0.009142811372
G68: 3.2224 | H68: 0.009208276054
G69: 3.2674 | H69: 0.009266465517
G70: 3.3124 | H70: 0.009317151812
G71: 3.3574 | H71: 0.009360106995
G72: 3.4024 | H72: 0.009395103116
G73: 3.4474 | H73: 0.009421912231
G74: 3.4924 | H74: 0.009440306391
G75: 3.5374 | H75: 0.009450057649
G76: 3.54 | H76: 0.0027
G77: 3.554925 | H77: 0.002719311536
G78: 3.56985 | H78: 0.002737720311
G79: 3.584775 | H79: 0.002755257057
G80: 3.5997 | H80: 0.002771952506
G81: IsoLine | H81: IsoLine

Sheet Good_01
A1: TABLE 1 | B1: 4 Older
A2: 4848
A3: 6150
A4: 4689
A5: 5123
A8: TABLE 3 | B8: 62 Older
A9: 4639
A10: 5244
A11: 5191
A12: 5721
A13: 5050
A14: 4802
A15: 5170
A16: 6931
A17: 7015
A18: 6611
A19: 6167
A20: 5050
A21: 4637
A22: 4929
A23: 517l.
A24: 6037
A25: 7010
A26: 4704
A27: 4970
A28: 4989
A29: 4767
A30: 5373
A31: 5106
A32: 6730
A33: 7317
A34: 5055
A35: 4861
A36: 5075
A37: 4973
A38: 5409
A39: 6795
A40: 7587
A41: 6960
A42: 6799
A43: 6511
A44: 7257
A45: 7823
A46: 7666
A47: 9588
A48: 8432
A49: 7234
A50: 6730
A51: 7317
A52: 5055
A53: 4861
A54: 5075
A55: 4973
A56: 3089
A57: 5409
A58: 6795
A59: 7587
A60: 6960
A61: 6799
A62: 6511
A63: 7257
A64: 7823
A65: 7666
A66: 9588
A67: 8432
A68: 7234
A69: 4552
A70: 5068
A71: 4777
A72: 5748
A73: 5459
A74: 5598
A79: TABLE 5 | B79: Billion Years | C79: 5 Older
A80: 79-173 | B80: 3.7
A81: 79-173 | B81: 5.8
A82: 79-173 | B82: 5.3
A83: 79-171 | B83: 4
A84: 79-458 | B84: 3.5
A85: 79-458 | B85: 4.2
A86: 79-459 | B86: 5.5
A87: 79-459 | B87: 7
A88: 79-461 | B88: 5.5
A89: 79-461 | B89: 7.3
A90: 79-462 | B90: 3.3
A91: 79-462 | B91: 3.5

Sheet Good_02
A1: TABLE 2
A2: Sample | B2: Age A | C2: Error A | D2: Age B | E2: Error B
A3: Name | B3: Million Years | C3: Million Years | D3: Million Years | E3: Million Years
A4: EGG 1
A5: 700 | B5: 5070 | C5: 40
A6: 1000 | B6: 5190 | C6: 50
A7: 1200 | B7: 4730 | C7: 50
A8: 1650 | B8: 4570 | C8: 50
A9: Total | B9: 4860 | C9: 50 | D9: 4800 | E9: 100
A11: EGG 2
A12: 700 | B12: 7370 | C12: 420
A13: 1000 | B13: 4670 | C13: 320
A14: 1200 | B14: 3430 | C14: 460
A15: 1650 | B15: 4510 | C15: 240
A16: Total | B16: 4470 | C16: 200 | D16: 4470 | E16: 200
A18: EGG 3
A19: 700 | B19: 8880 | C19: 120
A20: 1000 | B20: 6450 | C20: 90
A21: 1200 | B21: 2990 | C21: 230
A22: 1650 | B22: 5660 | C22: 270
A23: Total | B23: 5930 | C23: 120 | D23: 5020 | E23: 120
A25: EGG 4
A26: 700 | B26: 2.64 | C26: 0.12
A27: 1000 | B27: 1.71 | C27: 0.22
A28: 1200 | B28: 0.86
A32: The Allende Meteorite

Sheet Good_03
B1: Ages A | C1: Error A | D1: Ages B | E1: Error B | I1: 11.01 | J1: 5.08
A2: Sample 17 | B2: Billion | C2: Billion | D2: Billion | E2: Billion | I2: 8.06 | J2: 5.08
B3: Years | C3: Years | D3: Years | E3: Years | I3: 7.68 | J3: 5.09
A4: 500 | B4: 7.68 | C4: 0.08 | D4: 4.96 | E4: 0.42 | I4: 7.5 | J4: 5.12
A5: 580 | B5: 5.83 | C5: 0.08 | D5: 4.6 | E5: 0.16 | I5: 7.2 | J5: 5.13
A6: 660 | B6: 5.35 | C6: 0.04 | D6: 4.97 | E6: 0.06 | I6: 6.31 | J6: 5.19
A7: 740 | B7: 5.09 | C7: 0.02 | D7: 4.97 | E7: 0.04 | I7: 6.21 | J7: 5.21
A8: 820 | B8: 5.08 | C8: 0.04 | D8: 4.99 | E8: 0.06 | I8: 6.05 | J8: 5.21
A9: 890 | B9: 5.21 | C9: 0.04 | D9: 5.21 | E9: 0.04 | I9: 5.83 | J9: 5.25
A10: 950 | B10: 4.97 | C10: 0.06 | D10: 4.97 | E10: 0.06 | I10: 5.54 | J10: 5.34
A11: 1010 | B11: 4.97 | C11: 0.03 | D11: 4.97 | E11: 0.03 | I11: 5.5 | J11: 5.34
A12: 1070 | B12: 5.34 | C12: 0.04 | D12: 5.34 | E12: 0.04 | I12: 5.43 | J12: 5.35
A13: 1130 | B13: 5.54 | C13: 0.02 | D13: 5.43 | E13: 0.04 | I13: 5.37 | J13: 5.37
A14: 1200 | B14: 6.21 | C14: 0.1 | D14: 5.25 | E14: 0.24 | I14: 5.37 | J14: 5.37
A15: 1280 | B15: 5.19 | C15: 0.19 | D15: 1.46 | E15: 1.48 | I15: 5.37 | J15: 5.37
A16: 1380 | B16: 7.2 | C16: 0.59 | D16: 2.67 | E16: 5.65 | I16: 5.35 | J16: 5.43
A17: Total | B17: 5.5 | C17: 0.02 | D17: 5.12 | E17: 0.06 | I17: 5.34 | J17: 5.5
I18: 5.34 | J18: 5.54
A19: Sample 18 | I19: 5.25 | J19: 5.83
A20: 450 | B20: 11.01 | C20: 0.06 | D20: 4.52 | E20: 2.24 | I20: 5.21 | J20: 6.05
A21: 580 | B21: 8.06 | C21: 0.14 | D21: 4.47 | E21: 0.5 | I21: 5.21 | J21: 6.21
A22: 670 | B22: 7.5 | C22: 0.04 | D22: 4.97 | E22: 0.16 | I22: 5.19 | J22: 6.31
A23: 750 | B23: 6.31 | C23: 0.03 | D23: 4.9 | E23: 0.09 | I23: 5.13 | J23: 7.2
A24: 830 | B24: 5.37 | C24: 0.02 | D24: 5.l3 | E24: 0.06 | I24: 5.12 | J24: 7.5
A25: 900 | B25: 4.96 | C25: 0.04 | D25: 4.96 | E25: 0.04 | I25: 5.09 | J25: 7.68
A26: 970 | B26: 4.9 | C26: 0.04 | D26: 4.9 | E26: 0.04 | I26: 5.08 | J26: 8.06
A27: 1040 | B27: 4.89 | C27: 0.04 | D27: 4.89 | E27: 0.04 | I27: 5.08 | J27: 11.01
A28: 1110 | B28: 4.9 | C28: 0.03 | D28: 4.9 | E28: 0.03 | I28: 4.99
A29: 1190 | B29: 4.82 | C29: 0.02 | D29: 4.82 | E29: 0.02 | I29: 4.97
A30: 1300 | B30: 5.37 | C30: 0.1 | D30: 5.37 | E30: 0.1 | I30: 4.97
A31: Total | B31: 6.05 | C31: 0.04 | D31: 5.08 | E31: 0.05 | I31: 4.97
I32: 4.97
I33: 4.97
I34: 4.97
I35: 4.97
I36: 4.96
A37: Meteorite | B37: Age | C37: Error | D37: Age | E37: Error | I37: 4.96
A38: Sample 17 | B38: Million Years | C38: Million Years | D38: Million Years | E38: Million Years | I38: 4.96
A39: 500 | B39: 7680 | C39: 80 | D39: 4960 | E39: 420 | I39: 4.9
A40: 580 | B40: 5830 | C40: 80 | D40: 4600 | E40: 160 | I40: 4.9
A41: 660 | B41: 5350 | C41: 40 | D41: 4970 | E41: 60 | I41: 4.9
A42: 740 | B42: 5090 | C42: 20 | D42: 4970 | E42: 40 | I42: 4.9
A43: 820 | B43: 5080 | C43: 40 | D43: 4990 | E43: 60 | I43: 4.9
A44: 890 | B44: 5210 | C44: 40 | D44: 5210 | E44: 40 | I44: 4.89
A45: 950 | B45: 4970 | C45: 60 | D45: 4970 | E45: 60 | I45: 4.89
A46: 1010 | B46: 4970 | C46: 30 | D46: 4970 | E46: 30 | I46: 4.82
A47: 1070 | B47: 5340 | C47: 40 | D47: 5340 | E47: 40 | I47: 4.82
A48: 1130 | B48: 5540 | C48: 20 | D48: 5430 | E48: 40
A49: 1200 | B49: 6210 | C49: 100 | D49: 5250 | E49: 240
A50: 1280 | B50: 5190 | C50: 190 | D50: 1460 | E50: 1480
A51: 1380 | B51: 7200 | C51: 590 | D51: 2670 | E51: 5650
A52: Total | B52: 5500 | C52: 20 | D52: 5120 | E52: 60
A53: Meteorite | B53: Age | C53: Error | D53: Age | E53: Error
A54: Sample 18 | B54: Million Years | C54: Million Years | D54: Million Years | E54: Million Years
A55: 450 | B55: 11010 | C55: 60 | D55: 4520 | E55: 2240
A56: 580 | B56: 8060 | C56: 140 | D56: 4470 | E56: 500
A57: 670 | B57: 7500 | C57: 40 | D57: 4970 | E57: 160
A58: 750 | B58: 6310 | C58: 30 | D58: 4900 | E58: 90
A59: 830 | B59: 5370 | C59: 20 | D59: 5130 | E59: 60
A60: 900 | B60: 4960 | C60: 40 | D60: 4960 | E60: 40
A61: 970 | B61: 4900 | C61: 40 | D61: 4900 | E61: 40
A62: 1040 | B62: 4890 | C62: 40 | D62: 4890 | E62: 40
A63: 1110 | B63: 4900 | C63: 30 | D63: 4900 | E63: 30
A64: 1190 | B64: 4820 | C64: 20 | D64: 4820 | E64: 20
A65: 1300 | B65: 5370 | C65: 100 | D65: 5370 | E65: 100
A66: Total | B66: 6050 | C66: 40 | D66: 5080 | E66: 50

Sheet Good_04
A3: 396,1-1 | B3: 0.32 | C3: 2 | D3: 0.872 | E3: 30 | F3: 0.691 | G3: 11 | H3: 0.0098 | I3: 9 | J3: 0.397 | K3: 7 | L3: 1.042 | M3: 38 | N3: 93.2 | O3: 4.1 | P3: 0.649 | Q3: 13
A4: 396,1-2 | B4: 0.26 | C4: 2 | D4: 1.169 | E4: 27 | F4: 0.675 | G4: 13 | H4: 0.0056 | I4: 8 | J4: 0.328 | K4: 8 | L4: 0.81 | M4: 27 | N4: 72.8 | O4: 3 | P4: 0.651 | Q4: 14
A5: 396,2-1 | B5: 0.43 | C5: 2 | D5: 0.822 | E5: 36 | F5: 0.676 | G5: 14 | H5: 0.0143 | I5: 15 | J5: 0.567 | K5: 12 | L5: 1.054 | M5: 49 | N5: 88.6 | O5: 5.2 | P5: 0.609 | Q5: 18
A6: 396,3-1 | B6: 0.41 | C6: 2 | D6: 0.69 | E6: 22 | F6: 0.725 | G6: 8 | H6: 0.0241 | I6: 11 | J6: 0.862 | K6: 10 | L6: 1.125 | M6: 38 | N6: 95.3 | O6: 4 | P6: 0.615 | Q6: 13
A7: 396,3-2 | B7: 0.3 | C7: 2 | D7: 0.93 | E7: 29 | F7: 0.653 | G7: 9 | H7: 0.0083 | I7: 77 | J7: 0.324 | K7: 6 | L7: 0.992 | M7: 31 | N7: 84.1 | O7: 3.2 | P7: 0.615 | Q7: 11
A8: A52,1-1 | B8: 0.06 | C8: 1 | D8: 0.721 | E8: 43 | F8: 0.736 | G8: 19 | H8: 0.0294 | I8: 25 | J8: 0.632 | K8: 17 | L8: 1.008 | M8: 69 | N8: 83 | O8: 7.6 | P8: 0.597 | Q8: 32
A9: 309,1-1 | B9: 0.09 | C9: 1 | D9: 0.624 | E9: 39 | F9: 0.72 | G9: 18 | H9: 0.0224 | I9: 23 | J9: 0.748 | K9: 18 | L9: 1.268 | M9: 87 | N9: 108.1 | O9: 9.2 | P9: 0.618 | Q9: 26
A10: 7-1,1 | B10: 3.74 | C10: 9 | D10: 1.01 | E10: 34 | F10: 0.632 | G10: 10 | H10: 0.0007 | I10: 2 | J10: 1.022 | K10: 14 | L10: 0.983 | M10: 33 | N10: 85.3 | O10: 3.4 | P10: 0.629 | Q10: 10
A11: 7-1,2 | B11: 3.75 | C11: 6 | D11: 1.011 | E11: 33 | F11: 0.622 | G11: 10 | H11: 0.0006 | I11: 2 | J11: 0.994 | K11: 13 | L11: 0.984 | M11: 32 | N11: 84 | O11: 3.2 | P11: 0.619 | Q11: 10
A12: 7-1,1 | B12: 3.74 | C12: 9 | D12: 1.01 | E12: 34 | F12: 0.632 | G12: 10
A13: 7-1,2 | B13: 3.75 | C13: 6 | D13: 1.011 | E13: 33 | F13: 0.622 | G13: 10
A15: 0.0098 | B15: 9 | C15: 0.397 | D15: 7 | E15: 1.042 | F15: 38 | G15: 93.2 | H15: 4.1 | I15: 0.649 | J15: 13
A16: 0.0056 | B16: 8 | C16: 0.328 | D16: 8 | E16: 0.81O | F16: 27 | G16: 72.8 | H16: 3 | I16: 0.651 | J16: 14
A17: 0.0143 | B17: 15 | C17: 0.567 | D17: 12 | E17: 1.054 | F17: 49 | G17: 88.6 | H17: 5.2 | I17: 0.609 | J17: 18
A18: 0.0241 | B18: 11 | C18: 0.862 | D18: 10 | E18: 1.125 | F18: 38 | G18: 95.3 | H18: 4 | I18: 0.615 | J18: 13
A19: 0.0083 | B19: 77 | C19: 0.324 | D19: 6 | E19: 0.992 | F19: 31 | G19: 84.1 | H19: 3.2 | I19: 0.615 | J19: 11
A20: 0.0294 | B20: 25 | C20: 0.632 | D20: 17 | E20: 1.008 | F20: 69 | G20: 83 | H20: 7.6 | I20: 0.597 | J20: 32
A21: 0.0224 | B21: 23 | C21: 0.748 | D21: 18 | E21: l.268 | F21: 87 | G21: 108.1 | H21: 9.2 | I21: 0.618 | J21: 26
A22: 0.0007 | B22: 2 | C22: 1.022 | D22: 14 | E22: 0.983 | F22: 33 | G22: 85.3 | H22: 3.4 | I22: 0.629 | J22: 10
A23: 0.0006 | B23: 2 | C23: 0.994 | D23: 13 | E23: 0.984 | F23: 32 | G23: 84 | H23: 3.2 | I23: 0.619 | J23: 10

Sheet Good_06
A2: Sample | B2: Age | C2: Error
A3: Temperature | B3: Million | C3: Million
A4: Centigrade | B4: Years | C4: Years
A5: 740 | B5: 1844 | C5: 730
A6: 760 | B6: 2576 | C6: 493
A7: 790 | B7: 4517 | C7: 257
A8: 820 | B8: 4964 | C8: 239
A9: 850 | B9: 4916 | C9: 114
A10: 880 | B10: 5269 | C10: 120
A11: 910 | B11: 5804 | C11: 123
A12: 940 | B12: 5425 | C12: 109
A13: 970 | B13: 4843 | C13: 114
A14: 1020 | B14: 4332 | C14: 80
A15: 1070 | B15: 5054 | C15: 205
A16: 1170 | B16: 3973 | C16: 191
A17: 1350 | B17: 3286 | C17: 166
C20: Pre Cambrian
A26: Sample | B26: Age | C26: Error
A27: Temperature | B27: Million | C27: Million
A28: Centigrade | B28: Years | C28: Years
A29: 820 | B29: 4964 | C29: 239
A30: 850 | B30: 4916 | C30: 114
A31: 880 | B31: 5269 | C31: 120
A32: 910 | B32: 5804 | C32: 123
A33: 940 | B33: 5425 | C33: 109
A34: 970 | B34: 4843 | C34: 114
A35: 1070 | B35: 5054 | C35: 205

Sheet Good_08
D1: Mount Isa | M1: 9969
M2: 8655
M3: 7715
A4: EL | B4: Billion | D4: Age | M4: 7412
A5: Cr-1 | B5: Years | D5: Category | M5: 6568
A6: Cr-2 | B6: 5620 | C6: 244 | D6: Older Than Solar System | M6: 6442
A7: Cr-3 | B7: 5511 | C7: 278 | D7: Older Than Solar System | M7: 6393
A8: 200 | M8: 6127
A9: 300 | B9: 6127 | C9: 1281 | D9: Older Than Solar System | M9: 6060
A10: 400 | B10: 4063 | C10: 467 | M10: 5871
A11: 500 | B11: 2840 | C11: 104 | M11: 5620
A12: 600 | B12: — | M12: 5601
A13: 800 | B13: 1793 | C13: 274 | M13: 5511
A14: 1000 | B14: 2128 | C14: 428 | M14: 5418
A15: 1200 | B15: 4252 | C15: 657 | M15: 5370
A16: 1400 | B16: 5370 | C16: 1218 | D16: Older Than Solar System | M16: 5238
A17: Total | B17: 4804 | C17: 282 | D17: Older Than Earth | M17: 5201
M18: 5176
A19: EL | M19: 5049
A20: 150 | B20: — | M20: 4983
A21: 250 | B21: 6442 | C21: 2273 | D21: Older Than Solar System | M21: 4931
A22: 350 | B22: 6393 | C22: 1251 | D22: Older Than Solar System | M22: 4883
A23: 450 | B23: 4931 | C23: 174 | D23: Older Than Earth | M23: 4844
A24: 550 | B24: 2808 | C24: 192 | M24: 4805
A25: 650 | B25: 2360 | C25: 826 | M25: 4804
A26: 800 | B26: — | M26: 4777
A27: 1000 | B27: 2016 | C27: 1152 | M27: 4760
A28: 1200 | B28: 4760 | C28: 199 | D28: Older Than Earth | M28: 4759
A29: Total | B29: 4777 | C29: 218 | D29: Older Than Earth | M29: 4714
M30: 4594
A31: EL | M31: 4515
A32: 200 | B32: 7412 | C32: 5164 | D32: Older Than Solar System | M32: 4508
A33: 250 | B33: 9969 | C33: 7149 | D33: Older Than Galaxy | M33: 4506
A34: 300 | B34: 8655 | C34: 1416 | D34: Older Than Solar System | M34: 4499
A35: 350 | B35: 5871 | C35: 1674 | D35: Older Than Solar System | M35: 4425
A36: 400 | B36: 6568 | C36: 1973 | D36: Older Than Solar System | M36: 4343
A37: 450 | B37: 6060 | C37: 1659 | D37: Older Than Solar System | M37: 4252
A38: 500 | B38: 3523 | C38: 2892 | M38: 4144
A39: 550 | B39: 2176 | C39: 762 | M39: 4128
A40: 650 | B40: 3713 | C40: 803 | M40: 4120
A41: 800 | B41: 2775 | C41: 502 | M41: 4063
A42: 1000 | B42: 2530 | C42: 386 | M42: 3799
A43: 1100 | B43: 4144 | C43: 212 | M43: 3713
A44: 1200 | B44: 5201 | C44: 247 | D44: Older Than Solar System | M44: 3692
A45: 1300 | B45: 4805 | C45: 200 | D45: Older Than Earth | M45: 3523
A46: 1400 | B46: 5049 | C46: 353 | D46: Older Than Solar System | M46: 3442
A47: Total | B47: 5601 | C47: 632 | D47: Older Than Solar System | M47: 3422
M48: 3329
A49: Osborne | M49: 3227
A50: OS | M50: 3198
A51: 200 | B51: 2475 | C51: 1340 | M51: 3188
A52: 300 | B52: 7715 | C52: 5425 | D52: Older Than Solar System | M52: 3136
A53: 400 | B53: 4343 | C53: 459 | M53: 3109
A54: 200 | B54: 1595 | C54: 250 | M54: 2955
A55: 600 | B55: 4506 | C55: 4339 | M55: 2952
A56: 800 | B56: 2018 | C56: 284 | M56: 2863
A57: 1000 | B57: 1764 | C57: 617 | M57: 2840
A58: 1200 | B58: 1630 | C58: 89 | M58: 2808
A59: 1400 | B59: 3422 | C59: 571 | M59: 2775
A60: 1600 | B60: 2955 | C60: 198 | M60: 2674
A61: Total | B61: 2952 | C61: 171 | M61: 2639
M62: 2628
A63: OS | M63: 2610
A64: 200 | M64: 2581
A65: 300 | B65: 2610 | C65: 89 | M65: 2530
A66: 400 | B66: 1926 | C66: 72 | M66: 2475
A67: 500 | B67: — | M67: 2360
A68: 600 | B68: 1793 | C68: 235 | M68: 2261
A69: 700 | B69: 1768 | C69: 752 | M69: 2230
A70: 800 | M70: 2197
A71: 1000 | B71: — | M71: 2180
A72: 1200 | B72: 1914 | C72: 50 | M72: 2176
A73: 1400 | B73: 1724 | C73: 35 | M73: 2128
A74: 1600 | B74: 1496 | C74: 294 | M74: 2076
A75: Total | B75: 1818 | C75: 68 | M75: 2018
M76: 2016
A77: Railway | M77: 1926
A78: AW02-002a | M78: 1914
A79: 150 | M79: 1892
A80: 200 | B80: 5176 | C80: 1091 | D80: Older Than Solar System | M80: 1866
A81: 250 | B81: 4508 | C81: 190 | M81: 1853
A82: 300 | B82: 4594 | C82: 132 | M82: 1818
A83: 350 | B83: 4759 | C83: 155 | M83: 1793
A84: 380 | B84: 3692 | C84: 72 | M84: 1793
A85: 410 | B85: 2639 | C85: 36 | M85: 1768
A86: 440 | B86: 2180 | C86: 27 | M86: 1764
A87: 480 | B87: 1304 | C87: 12 | M87: 1724
A88: 530 | B88: 1188 | C88: 11 | M88: 1644
A89: 580 | B89: 1152 | C89: 10 | M89: 1630
A90: 650 | B90: 1115 | C90: 11 | M90: 1595
A91: 750 | B91: 1406 | C91: 14 | M91: 1511
A92: 850 | B92: 1252 | C92: 26 | M92: 1496
A93: 1000 | B93: 1644 | C93: 17 | M93: 1482
A94: 1100 | B94: 1892 | C94: 25 | M94: 1406
A95: 1200 | B95: 2863 | C95: 43 | M95: 1402
A96: 1250 | B96: 3198 | C96: 53 | M96: 1394
A97: 1290 | B97: 3109 | C97: 51 | M97: 1304
A98: 1330 | B98: 3188 | C98: 53 | M98: 1252
A99: 1370 | B99: 3442 | C99: 62 | M99: 1246
A100: 1410 | B100: 3799 | C100: 79 | M100: 1188
A101: 1450 | B101: 4120 | C101: 97 | M101: 1174
A102: 1490 | B102: 4425 | C102: 117 | M102: 1152
A103: 1530 | B103: 4515 | C103: 133 | M103: 1127
A104: 1550 | B104: 4128 | C104: 315 | M104: 1115
A105: Total | B105: 2674 | C105: 9 | M105: 1038
M106: 1014
A107: AW02-002b | M107: 985
A108: Cr | B108: 4844 | C108: 2039 | D108: Older Than Earth
A109: Cr | B109: 4499 | C109: 980
A110: Cr | B110: 4883 | C110: 343 | D110: Older Than Earth
A111: Cr | B111: 5418 | C111: 236 | D111: Older Than Solar System
A112: Cr | B112: 5238 | C112: 203 | D112: Older Than Solar System
A113: Cr | B113: 4983 | C113: 266 | D113: E
A114: 200 | B114: 1853 | C114: 162
A115: 300 | B115: 1866 | C115: 68
A116: 400 | B116: 1482 | C116: 29
A117: 500 | B117: 1174 | C117: 12
A118: 600 | B118: 1038 | C118: 9
A119: 800 | B119: 1014 | C119: 28
A120: 1000 | B120: 985 | C120: 14
A121: 1200 | B121: 1511 | C121: 26
A122: 1400 | B122: 2581 | C122: 41
A123: 1600 | B123: 3329 | C123: 216
A124: Total | B124: 2197 | C124: 17
A126: AW02-002b
A127: 200 | B127: 3136 | C127: 480
A128: 300 | B128: 4714 | C128: 277
A129: 400 | B129: 3227 | C129: 82
A130: 500 | B130: 1394 | C130: 28
A131: 600 | B131: 1127 | C131: 23
A132: 800 | B132: 1402 | C132: 249
A133: 1000 | B133: 1246 | C133: 15
A134: 1200 | B134: 2076 | C134: 53
A135: 1400 | B135: 2261 | C135: 32
A136: 1600 | B136: 2628 | C136: 43
A137: Total | B137: 2230 | C137: 30
A141: Sample | B141: Billion | C141: Age
A142: Eloise Mine | B142: Years | C142: Category
A143: Cr-2 | B143: 5620 | C143: Older Than Solar System | E143: 4759
A144: Cr-3 | B144: 5511 | C144: Older Than Solar System | E144: 4760
A145: 300 | B145: 6127 | C145: Older Than Solar System | E145: 4777
A146: 1400 | B146: 5370 | C146: Older Than Solar System | E146: 4804
A147: Total | B147: 4804 | C147: Older Than Earth | E147: 4805
A148: Sample | B148: Billion | C148: Age | E148: 4844
A149: Eloise Mine | B149: Years | C149: Category | E149: 4883
A150: 250 | B150: 6442 | C150: Older Than Solar System | E150: 4931
A151: 350 | B151: 6393 | C151: Older Than Solar System | E151: 5049 | F151: 5049
A152: 450 | B152: 4931 | C152: Older Than Earth | E152: 5176 | F152: 5176
A153: 1200 | B153: 4760 | C153: Older Than Earth | E153: 5201 | F153: 5201
A154: Total | B154: 4777 | C154: Older Than Earth | E154: 5238 | F154: 5238
A155: Sample | B155: Billion | C155: Age | E155: 5370 | F155: 5370
A156: Eloise Mine | B156: Years | C156: Category | E156: 5418 | F156: 5418
A157: 200 | B157: 7412 | C157: Older Than Solar System | E157: 5511 | F157: 5511
A158: 250 | B158: 9969 | C158: Older Than Galaxy | E158: 5601 | F158: 5601
A159: 300 | B159: 8655 | C159: Older Than Solar System | E159: 5620 | F159: 5620
A160: 350 | B160: 5871 | C160: Older Than Solar System | E160: 5871 | F160: 5871
A161: 400 | B161: 6568 | C161: Older Than Solar System | E161: 6060 | F161: 6060
A162: 450 | B162: 6060 | C162: Older Than Solar System | E162: 6127 | F162: 6127
A163: 1200 | B163: 5201 | C163: Older Than Solar System | E163: 6393 | F163: 6393
A164: 1300 | B164: 4805 | C164: Older Than Earth | E164: 6442 | F164: 6442
A165: 1400 | B165: 5049 | C165: Older Than Solar System | E165: 6568 | F165: 6568
A166: Total | B166: 5601 | C166: Older Than Solar System | E166: 7412 | F166: 7412
E167: 7715 | F167: 7715
E168: 8655 | F168: 8655
A169: Sample | B169: Billion | C169: Age | E169: 9969 | F169: 9969
A170: Osborne Mine | B170: Years | C170: Category | E170: =COUNT(E143:E169) -> 27 | F170: =COUNT(F143:F169) -> 19
A171: 300 | B171: 7715 | C171: Older Than Solar System
A172: Sample | B172: Billion | C172: Age
A173: Railway Fault | B173: Years | C173: Category
A174: 200 | B174: 5176 | C174: Older Than Solar System
A175: 350 | B175: 4759 | C175: Older Than Earth
A176: Sample | B176: Billion | C176: Age
A177: Railway Fault | B177: Years | C177: Category
A178: Cr | B178: 4844 | C178: Older Than Earth
A179: Cr | B179: 4883 | C179: Older Than Earth
A180: Cr | B180: 5418 | C180: Older Than Solar System
A181: Cr | B181: 5238 | C181: Older Than Solar System

Sheet Good_11
A1: Mineral | B1: Age | C1: Error
A2: System | B2: Billion Years | C2: Billion Years
A3: Vein | B3: 8.5 | C3: 0.7 | D3: 13 | E3: 59.5 0.11±0.06 | F3: 31.2 | G3: 1346 | H3: 0.6
A4: Spinel | B4: 6.9 | C4: 0.8 | D4: 6 | E4: 20 0.09±0.05 | F4: 1.3 | G4: 1090 | H4: 0.14
A6: Vein | B6: 5.25 | C6: 0.14 | D6: 72 | E6: 87.6 1.04±0.11 | F6: 8.9 | G6: 3630 | H6: 0.4
A7: Spinel | B7: 6.4 | C7: 0.5 | D7: 10 | E7: 21.4 0.13-1-0.05 | F7: 7.9 | G7: 770 | H7: 0.3
D8: preheated 1 hour | E8: 600%, 1 hour 675°C
A9: Veins | B9: 4.33 | C9: 0.02 | D9: 455 | E9: 351 7.2 .10.1 | F9: 10.7 | G9: 3340 | H9: 0.3
A10: She | B10: 4.1 | C10: 0.02 | D10: 2640 | E10: 320 7.6 ±0.1 | F10: 16.1 | G10: 370 | H10: 0.7
A11: Rim | B11: 4.02 | C11: 10.02 | D11: 1320 | E11: 152 3.8 ±0.1 | F11: 6.2 | G11: 250 | H11: 0.2
A12: Vein | B12: 4.88 | C12: 0.04 | D12: 295 | E12: 116 1.7 ±0.1 | F12: 7.4 | G12: 1020 | H12: 0.2
E13: 1 hour 675°C. 1 hour 775°C
A14: Rim | B14: 4.18 | C14: 0.01 | D14: 2950 | E14: 380 8.5 ±0.1 | F14: 16.6 | G14: 950 | H14: 0.9
D16: no preheat
A17: Bulk | B17: 5.12 | C17: 0.02 | D17: 440 | E17: 619 7.9 ±0.1 | F17: 39 | G17: 1140 | H17: 1
A18: Bulk | B18: 5.1 | C18: 0.1 | D18: 1460 | E18: 33 0.4250.03 | F18: 0.3 | G18: 30 | H18: 0.03
A19: Bulk | B19: 4.68 | C19: 0.01 | D19: 1480 | E19: 1540 25.5 t0.2 | F19: 23 | G19: 1210 | H19: 1.2
A20: Bulk | B20: 4.8 | C20: 0.02 | D20: 1460 | E20: 272 4.2 ±0.1 | F20: 1.4 | G20: 190 | H20: 0.02
D21: preheated | E21: 1 hour, 675°C
A22: Bulk | B22: 4.4 | C22: 0.1 | D22: 1640 | E22: 650 11.8 50.1 | F22: 4 | G22: 960 | H22: 0.2
A23: Bulk | B23: 4.3 | C23: 0.1 | D23: 1640 | E23: 740 14.2 ±0.1 | F23: 41 | G23: 640 | H23: 0.3
D25: no preheat
A26: Matrix | B26: 3.35 | C26: 0.02 | D26: 165 | E26: 82 3.09±0.05 | F26: 5.2 | G26: 660 | H26: 2.5
A27: Matrix | B27: 1.58 | C27: 0.02 | D27: 470 | E27: 231 7.5 50.1 | F27: 7.2 | G27: 690 | H27: 4.1
A28: Matrix | B28: 1.44 | C28: 0.04 | D28: 160 | E28: 71 2.54±0.06 | F28: 4.8 | G28: 570 | H28: 3.3
A29: Chondrule | B29: 4.63 | C29: 0.01 | D29: 790 | E29: 870 14.8 10.1 | F29: 1.9 | G29: 240 | H29: 0.6
A30: Chondrule | B30: 4.37 | C30: 0.01 | D30: 750 | E30: 700 14.1 ±0.1 | F30: 2 | G30: 220 | H30: 0.03
A31: Chondrule | B31: 4.44 | C31: 0.01 | D31: 1000 | E31: 910 17.3 ±0.2 | F31: 1.7 | G31: 310 | H31: 0.2
A32: Chondrule | B32: 3.97 | C32: 0.01 | D32: 2400 | E32: 670 17.0 t0.1 | F32: 0.5 | G32: 160 | H32: 0.2
A33: Chondrule | B33: 4.4 | C33: 0.01 | D33: 570 | E33: 450 4.88.10.06 | F33: 2.7 | G33: 220 | H33: <0.05
D34: preheated 1 hour. 675°C
A35: Matrix | B35: 3.64 | C35: 0.06 | D35: 118 | E35: 33 1.02±0.04 | F35: 3.5 | G35: 280 | H35: 2.8
A36: Matrix | B36: 3.99 | C36: 0.02 | D36: 900 | E36: 280 7.1310.08 | F36: 7.8 | G36: 470 | H36: 4
A37: Chondrule | B37: 4.44 | C37: 0.02 | D37: 940 | E37: 350 6.79±0.09 | F37: 4.3 | G37: 340 | H37: 0.05
A38: Chondrule | B38: 4.09 | C38: 0.01 | D38: 2000 | E38: 980 23.21±0.07 | F38: 2.2 | G38: 270 | H38: 0.1
A39: Chond. rim | B39: 4.76 | C39: 1.02 | D39: 570 | E39: 370 5.77±0.06 | F39: 1 | G39: 170 | H39: 0.4
A40: Inclusion | B40: 4.28 | C40: 0.01 | D40: 1160 | E40: 790 16.7 ±0.1 | F40: 33 | G40: 520 | H40: 0.8
A41: 01. Skel. | B41: 6.29 | C41: 0.01 | D41: 620 | E41: 1380 8.92±0.00 | F41: 2.3 | G41: 360 | H41: 4
A42: Gran. Kit. | B42: 4.11 | C42: 0.02 | D42: 674 | E42: 250 5.82±0.07 | F42: 1.9 | G42: 170 | H42: 0.4
A49: Mineral | B49: Age | C49: Error
A50: System | B50: Billion Years | C50: Billion Years
A51: Vein | B51: 8.5 | C51: 0.7
A52: Spinel | B52: 6.9 | C52: 0.8
A53: Vein | B53: 5.25 | C53: 0.14
A54: Spinel | B54: 6.4 | C54: 0.5
A55: Bulk | B55: 5.12 | C55: 0.02
A56: Bulk | B56: 5.1 | C56: 0.1
A57: 01. Skel. | B57: 6.29 | C57: 0.01

Sheet Good_12
A2: Sample | B2: Pb-206/Pb-207 | C2: Pb-206/U-238 | D2: Pb-208/Th-232 | E2: Nd-143/Nd-144 | F2: Rb-87/Sr-86
A3: Number | B3: Million Years | C3: Million Years | D3: Million Years | E3: Million Years | F3: Million Years
A4: 66075, 11D | B4: 5371 | C4: 7794 | D4: 8280
A5: 66075, 11 | B5: 5358 | C5: 7740 | D5: 8375 | E5: 4530 | F5: 4240
